Cogmind - Beta 9.6 @@@ ROGUE MODE // 2020.09.12 @ 22:26:58 Player: Finestep Result: Assimilated 0b10! Performance ------------- Evolutions (9) 4500 Regions Visited (30) 6000 Robots Destroyed (485) 2425 Value Destroyed (26988) 26988 Prototype IDs (55) 1100 Alien Tech Used (0) 0 Bonus (28216) 28216 TOTAL SCORE: 69229 Bonus ------- High Alert Combat Kills 4571 Follower Combat Kills 9656 Entered Garrisons 2000 Used RIF Installer 4500 Aligned with FarCom 300 Destroyed MAIN.C Guards 500 Met MAIN.C 5000 Used 0b10 Conduit 2000 Win 3000 Friendly Fire -3311 Cogmind --------- Core Integrity 277/1600 Matter 300/300 Energy 168/170 System Corruption 28% Temperature Cool (0) Movement Core (50) Location 0b10 Command Parts ------- > --- POWER (2) -------- Micro Fission Core > --- PROPULSION (3) --- Improved Medium Treads Experimental Biometal Heavy Treads > --- UTILITY (18) ----- Quantum Shading Machine Advanced Targeting Computer Improved Melee Analysis Suite Advanced Target Analyzer Advanced Core Analyzer Core Shielding Relay Coupler [Sentry] (8) Relay Coupler [Demolisher] (17) Relay Coupler [Hunter] (2) > --- WEAPON (2) ------- (None) > --- INVENTORY (4) ---- Relay Coupler [Demolisher] (32) Long-range Tractor Beam Nova Cannon Improved Plasma Cutter Peak State ------------ > --- POWER ------------ Quantum Reactor Quantum Reactor > --- PROPULSION ------- Myomer Leg Myomer Leg Myomer Leg > --- UTILITY ---------- Large Storage Unit Large Storage Unit Large Storage Unit Large Storage Unit Large Storage Unit Enhanced Optical Array Improved Targeting Computer Advanced Core Analyzer Advanced Weapon Cycler Advanced Transmission Jammer Advanced Phase Shifter Relay Coupler [C] Relay Coupler [C] Relay Coupler [ARC] Relay Coupler [Sentry] Relay Coupler [Demolisher] Relay Coupler [Hunter] Relay Coupler [Behemoth] > --- WEAPON ----------- Helical Railgun Multirail > --- INVENTORY -------- Graviton Reactor Myomer Leg Myomer Leg High-density Centrium Wheel Advanced Cooling System Large Storage Unit Compact Battery Compact Battery Matter Compressor Advanced Transmission Jammer Advanced Powered Armor Advanced Powered Armor Advanced Powered Armor Advanced Powered Armor Antimissile System Relay Coupler [NC] Relay Coupler [NC] Relay Coupler [C] Relay Coupler [Sentry] Relay Coupler [Sentry] Relay Coupler [Demolisher] Relay Coupler [Demolisher] Relay Coupler [Hunter] Advanced Component Analysis Suite Compact HERF Cannon Compact HERF Cannon Helical Railgun Linear Accelerator Compact Tesla Bomb Launcher Compact Tesla Bomb Launcher Advanced Remote Datajack Advanced Remote Datajack Improved Plasma Cutter Spear [Rating: 166] Favorites ----------- Power Micro Fission Core Engine Improved Ion Engine Power Core Micro Fission Core Reactor Antimatter Reactor Propulsion Myomer Leg Treads Improved Treads Leg Myomer Leg Wheel Armored Wheel Hover Unit Aerolev Unit Utility Large Storage Unit Device Advanced Weapon Cycler Storage Large Storage Unit Processor Advanced Core Analyzer Hackware Relay Coupler [Sentry] Protection Improved Medium Armor Plating Weapon Improved Remote Datajack Energy Gun Gamma Rifle Energy Cannon Long-range Proton Cannon Ballistic Gun Light Assault Rifle Ballistic Cannon Hardcell Cannon Launcher Grenade Launcher Special Weapon Improved Remote Datajack Slashing Weapon Power Sword Piercing Weapon Spear Special Melee Weapon Improved Datajack Build | -11 -10 -10 -9 -9 -9 -8 -8 -8 -8 -8 -7 -7 -7 -7 -6 -6 -5 -5 -5 -5 -4 -4 -4 -4 -3 -3 -2 -2 -1 -1 ------- Run | Scr Mat Min Mat Min Exi Min Mat Gar Mat Gar Fac Was Fac Gar Fac Gar Fac Gar Fac Gar Fac Gar Fac Gar Res Gar Res Gar Acc Com Slots Evolved 18 | . . . 2 . . . 2 . . . 2 . . . 2 . 2 . . . 2 . . . 2 . 2 . 2 . Power 1 | . . . . . . . . . . . 1 . . . . . . . . . . . . . . . . . . . Propulsion 1 | . . . . . . . 1 . . . . . . . . . . . . . . . . . . . . . . . Utility 16 | . . . 2 . . . 1 . . . 1 . . . 2 . 2 . . . 2 . . . 2 . 2 . 2 . Weapon . | . . . . . . . . . . . . . . . . . . . . . . . . . . . . . . . Parts Attached 863 | 6 2 2 43 4 39 2 29 63 15 16 21 16 2 29 6 6 8 30 17 50 60 37 54 30 27 29 67 35 38 80 Power 62 | 1 . . 6 . 2 . 2 5 2 . 1 1 . 1 . . 1 1 4 2 5 4 2 2 1 . 2 5 2 10 Engine 18 | 1 . . 6 . 1 . 2 5 2 . . . . . . . . . . . . . . . . . . . . 1 Core 15 | . . . . . . . . . . . . . . . . . 1 1 4 2 3 1 . 1 . . 1 . . 1 Reactor 29 | . . . . . 1 . . . . . 1 1 . 1 . . . . . . 2 3 2 1 1 . 1 5 2 8 Propulsion 113 | 2 . . 7 . 7 . 9 8 1 3 4 . . . 1 . . 4 2 5 12 2 7 4 4 3 8 4 5 11 Treads 41 | 2 . . 7 . 7 . 7 . . . 1 . . . 1 . . . 2 3 5 . . . . . 1 . . 5 Leg 50 | . . . . . . . . 7 1 . . . . . . . . . . . 5 2 7 1 3 3 6 4 5 6 Wheel 21 | . . . . . . . 1 1 . 3 3 . . . . . . 4 . 2 2 . . 3 1 . 1 . . . Hover 1 | . . . . . . . 1 . . . . . . . . . . . . . . . . . . . . . . . Flight . | . . . . . . . . . . . . . . . . . . . . . . . . . . . . . . . Utility 321 | 1 2 . 10 1 11 . 7 21 4 4 4 1 . 11 3 3 6 11 7 18 18 17 17 12 12 17 32 16 17 38 Device 102 | . . . . . 1 . 2 3 . 1 1 . . 2 . 1 3 2 1 6 7 4 5 5 4 5 21 4 6 18 Storage 43 | 1 2 . 5 . 5 . 1 4 1 1 1 . . 2 . . . 2 . 1 . . 5 3 1 3 . . 1 4 Processor 16 | . . . . . . . 2 2 . . . . . . . . . . . . 4 . . . . 1 . . 3 4 Hackware 89 | . . . . . . . . 3 2 1 2 . . 3 3 1 3 5 4 5 2 9 5 3 5 7 8 9 7 2 Protection 71 | . . . 5 1 5 . 2 9 1 1 . 1 . 4 . 1 . 2 2 6 5 4 2 1 2 1 3 3 . 10 Artifact . | . . . . . . . . . . . . . . . . . . . . . . . . . . . . . . . Weapon 367 | 2 . 2 20 3 19 2 11 29 8 9 12 14 2 17 2 3 1 14 4 25 25 14 28 12 10 9 25 10 14 21 Energy Gun 27 | . . . . . . . 1 . . . . . . . . . . . . . . 1 9 1 . 2 8 5 . . Energy Cannon 81 | . . 2 1 . 1 . . 6 5 5 7 5 . 11 1 2 . 3 2 7 5 3 2 1 1 1 3 . 1 6 Ballistic Gun 88 | 2 . . 15 2 14 1 6 7 . . . . . . . . . 4 . 7 8 3 . 1 1 . 2 2 7 6 Ballistic Cannon 16 | . . . . . . . 2 3 . . . . . . . . . . . . 2 . 6 1 2 . . . . . Launcher 30 | . . . 2 1 2 1 . 2 1 3 . 1 . 3 . . . . . 2 3 2 2 1 . . 2 . 1 1 Special Weapon 88 | . . . . . 2 . 1 7 2 1 5 5 1 3 1 1 1 5 2 5 3 4 9 5 4 4 6 2 4 5 Impact Weapon . | . . . . . . . . . . . . . . . . . . . . . . . . . . . . . . . Slashing Weapon 20 | . . . 1 . . . 1 3 . . . 3 1 . . . . 2 . 4 4 1 . . . . . . . . Piercing Weapon 15 | . . . . . . . . . . . . . . . . . . . . . . . . 2 2 2 4 1 1 3 Special Melee Weapon 2 | . . . 1 . . . . 1 . . . . . . . . . . . . . . . . . . . . . . Unidentified Prototypes 18 | . . . . . 3 . 1 2 1 . . . . . . . . . . . 1 . 1 . . 1 1 . 1 6 Parts Lost 159 | . . . 9 . 8 . 6 5 . 1 . . . 2 . . . 1 2 7 23 10 4 5 2 1 17 5 1 50 Power 18 | . . . 3 . 1 . 1 1 . . . . . 1 . . . . . . 1 2 . . . . 1 . . 7 Propulsion 36 | . . . 1 . 3 . 1 . . . . . . . . . . . 1 2 9 2 . 3 . . 5 1 . 8 Utility 59 | . . . 2 . 2 . 2 2 . . . . . . . . . 1 . 1 7 3 3 1 2 . 6 3 . 24 Weapon 46 | . . . 3 . 2 . 2 2 . 1 . . . 1 . . . . 1 4 6 3 1 1 . 1 5 1 1 11 Highest Loss Streak 25 | . . . 3 . 7 . 4 3 . 1 . . . 1 . . . 1 1 3 5 4 2 3 1 1 4 3 1 25 Average Slot Usage (%) 94 | . 98 100 96 100 89 88 80 89 98 90 92 91 92 87 92 92 93 97 97 98 93 96 99 99 98 99 95 94 99 90 Engine 2 | . 14 14 9 11 7 11 7 8 7 9 7 2 . . . . . . . . . . . . . . . . . . Core 2 | . . . . . . . . . . . . . . . . . 1 8 11 11 7 4 5 5 2 . . . . . Reactor 4 | . . . . . 1 . . . . . 7 12 15 11 13 13 9 2 . . 2 5 5 4 6 9 7 7 8 7 Treads 6 | . 28 28 21 22 22 22 17 . . . 1 7 7 7 5 6 5 . 2 11 3 . . . . . . 2 . 1 Leg 6 | . . . . . . . . 22 27 3 . . . . . . . . . . 4 14 15 10 10 14 9 5 12 8 Wheel 3 | . . . . . . . 4 2 . 14 13 7 7 7 6 6 5 15 12 3 4 . . 4 2 . . 2 . . Device 4 | . . . . . . . . 4 . . . . . 1 . 2 2 1 1 3 5 3 5 8 5 12 11 14 8 7 Storage 27 | . 26 28 34 33 23 22 18 29 36 34 30 38 38 32 33 33 29 29 29 29 26 25 21 28 23 27 21 21 20 19 Processor 4 | . . . . . . . 7 1 4 . . . . . . . . . . . 13 10 10 10 8 4 4 4 11 12 Hackware 12 | . . . . . . . . . 1 . 12 4 . 7 13 16 19 22 25 17 8 18 20 13 21 17 27 25 31 23 Protection 3 | . . . 7 11 13 11 6 2 3 8 . 2 7 3 5 . 5 2 1 6 4 2 3 . 3 1 2 . . 3 Energy Cannon 3 | . . 20 3 . . . . 3 16 17 13 8 7 12 9 6 5 3 5 2 1 2 2 . . . 2 . . 1 Ballistic Gun 4 | . 28 7 17 21 16 18 14 7 . . . . . . . . . 1 . 3 4 1 . . . . . 2 5 3 Special Weapon 2 | . . . . . 1 . . 1 . . . 1 4 1 2 5 5 4 4 2 1 2 1 4 3 3 2 2 2 1 Naked Turns . | . . . . . . . . . . . . . . . . . . . . . . . . . . . . . . . Heaviest Build 156 | 10 38 43 65 64 134 123 128 145 124 121 135 140 141 149 149 142 149 139 134 146 149 128 128 139 151 151 156 148 150 155 Greatest Support 100 | 40 40 40 46 46 58 43 66 90 90 78 40 28 28 28 28 28 28 36 93 100 60 70 70 70 60 70 75 75 81 81 Greatest Overweight (x) 42 | . . 1 3 1 2 2 5 42 1 10 4 4 5 5 5 5 5 10 5 10 32 1 1 5 10 2 7 7 1 14 Average Overweight (x) 2 | . . . 1 1 1 2 2 1 1 2 2 4 4 4 5 4 4 3 2 2 4 1 1 3 3 1 2 3 1 1 Largest Inventory Capacity 52 | 6 16 16 22 22 44 32 52 38 30 30 36 36 36 36 36 36 36 36 36 42 34 34 28 34 34 40 34 34 34 34 Average Capacity 31 | 5 14 16 21 22 25 32 32 35 30 29 30 36 36 31 36 36 36 36 36 35 34 33 26 33 34 34 34 34 34 29 Most Carried 38 | 3 16 16 22 22 32 32 32 38 30 30 30 36 36 36 36 36 36 36 36 36 34 34 28 34 34 34 34 34 34 34 Average Carried 29 | 1 10 15 20 21 19 31 31 34 29 29 29 34 35 30 35 35 34 35 35 34 32 32 25 32 33 32 29 29 33 26 Final Capacity 36 | 6 16 16 22 22 32 32 32 30 30 30 36 36 36 36 36 36 36 36 36 34 34 28 28 34 34 34 34 34 34 4 Final Carried 36 | 3 16 16 22 22 32 32 31 30 30 30 30 35 36 36 36 36 35 36 36 34 34 28 25 34 30 34 24 34 34 4 Class Distribution -------------------- 57% | Botlord-Mutant 24% | Hauler-Mutant 11% | Bothacker-Mutant 5% | Mutant Dominant Class ---------------- Mutant | -10/Materials Mutant | -10/Mines Hauler-Mutant | -9/Materials Hauler-Mutant | -9/Mines Hauler-Mutant | -9/Exiles Hauler-Mutant | -8/Mines Hauler-Mutant | -8/Materials Hauler-Mutant | -8/Garrison Hauler-Mutant | -8/Materials Bothacker-Mutant | -8/Garrison Hauler-Mutant | -7/Factory Hauler-Mutant | -7/Waste Hauler-Mutant | -7/Factory Bothacker-Mutant | -7/Garrison Bothacker-Mutant | -6/Factory Botlord-Mutant | -6/Garrison Botlord-Mutant | -5/Factory Botlord-Mutant | -5/Garrison Botlord-Mutant | -5/Factory Botlord-Mutant | -5/Garrison Botlord-Mutant | -4/Factory Botlord-Mutant | -4/Garrison Botlord-Mutant | -4/Factory Botlord-Mutant | -4/Garrison Botlord-Mutant | -3/Research Botlord-Mutant | -3/Garrison Botlord-Mutant | -2/Research Botlord-Mutant | -2/Garrison Botlord-Mutant | -1/Access Botlord-Mutant | -1/Command Resources | -11 -10 -10 -9 -9 -9 -8 -8 -8 -8 -8 -7 -7 -7 -7 -6 -6 -5 -5 -5 -5 -4 -4 -4 -4 -3 -3 -2 -2 -1 -1 ----------- Run | Scr Mat Min Mat Min Exi Min Mat Gar Mat Gar Fac Was Fac Gar Fac Gar Fac Gar Fac Gar Fac Gar Fac Gar Res Gar Res Gar Acc Com Matter Collected 19372 | 249 203 44 1036 113 842 210 903 1338 237 270 220 296 25 434 75 120 120 580 314 972 1497 687 951 675 509 674 1272 1194 1588 1724 Remotely . | . . . . . . . . . . . . . . . . . . . . . . . . . . . . . . . Salvage Created 27593 | 131 329 280 1998 101 491 52 1572 2039 420 635 213 953 119 612 117 791 123 717 77 1230 3599 648 1348 761 697 852 1725 347 1042 3574 Parts 1298 | 7 26 7 141 10 42 11 81 75 18 31 21 18 10 23 . 23 11 33 5 52 156 28 42 41 37 27 100 22 45 155 Haulers Intercepted 14 | . 2 . 3 . . . 3 . 2 . . . 1 . . . . . . . 1 . 2 . . . . . . . Recyclers Shooed 18 | . 3 1 3 1 . 2 . . . . . . 1 . . . . . . . 2 . 1 . . . 3 . 1 . Parts Field Recycled . | . . . . . . . . . . . . . . . . . . . . . . . . . . . . . . . Retrieved Matter . | . . . . . . . . . . . . . . . . . . . . . . . . . . . . . . . Parts Self-Destructed . | . . . . . . . . . . . . . . . . . . . . . . . . . . . . . . . Prevented . | . . . . . . . . . . . . . . . . . . . . . . . . . . . . . . . Kills | -11 -10 -10 -9 -9 -9 -8 -8 -8 -8 -8 -7 -7 -7 -7 -6 -6 -5 -5 -5 -5 -4 -4 -4 -4 -3 -3 -2 -2 -1 -1 ------- Run | Scr Mat Min Mat Min Exi Min Mat Gar Mat Gar Fac Was Fac Gar Fac Gar Fac Gar Fac Gar Fac Gar Fac Gar Res Gar Res Gar Acc Com Combat Hostiles Destroyed 353 | . 5 3 36 3 7 5 30 28 6 15 4 3 1 16 . 11 1 5 2 16 47 9 11 12 6 5 19 7 11 29 Melee 18 | . . . . . . . . . . . . 1 1 . . . . 1 . . 2 . . 2 1 1 3 2 . 4 Guns 128 | . 5 . 19 1 1 2 25 11 . . . . . . . . . 2 . 8 18 1 2 . . 3 4 5 8 13 Cannons 108 | . . 3 10 . . . 5 8 4 8 4 2 . 9 . 7 1 2 2 3 10 5 5 2 4 . 9 . . 5 AOE 65 | . . . 6 2 6 3 . 8 2 7 . . . 6 . . . . . 4 4 2 3 7 . . 3 . 1 1 Classes Destroyed 23 | 2 5 1 5 . 3 . 2 1 . . . 1 . 1 . . . . . . 1 . . . . . . 1 . . Worker 23 | . . . 7 . . . 4 . . . . . 2 . . . 1 . . . 3 . 3 . . . . . . 3 Builder 15 | . . . 4 1 . 1 1 . 1 . . . . . . . . . . . 2 . 1 . 2 . 1 . 1 . Tunneler 10 | 2 . . 1 1 . . . . . . 2 . . . . . . . . . 2 . . . . . 1 . 1 . Hauler 14 | . 2 . 3 . . . 3 . 2 . . . 1 . . . . . . . 1 . 2 . . . . . . . Recycler 28 | 1 1 2 8 . . . 1 . 1 . 1 . . . 1 . . . . . 2 . 5 . 1 . 3 . 1 . Mechanic 2 | . . . 1 . . . . . . . . . . . . . . . . . . . . . . . 1 . . . Operator 4 | . 2 . 1 . . . . . . . . . . . . . . . . . . . . . . . . . . 1 Turret 1 | . . . . . 1 . . . . . . . . . . . . . . . . . . . . . . . . . Watcher 17 | . 1 . 4 . . . . 1 1 . . . . . . 1 1 . . . 3 . . . . . 3 . 1 1 Swarmer 95 | . 3 . 15 1 . 5 12 8 2 4 3 . . 7 . . . 1 1 3 7 2 3 10 . . 3 4 1 . Saboteur 1 | . . . . . . . . . . . . . . . . . . . . . . . . . . . . 1 . . Grunt 113 | . 2 2 12 2 . . 11 9 1 6 . . . 7 . 5 . . . 7 20 3 3 1 1 2 . 1 4 14 Brawler 6 | . . . . . . . 2 1 . . . . . . . . . . . . 1 . . . 1 . . . . 1 Duelist 8 | . . . 2 . . . . 2 . . . . . . . 2 . . . . 1 1 . . . . . . . . Protector 2 | . . . . . . . . . . . . . . . . . . . . . 1 . . . 1 . . . . . Sentry 38 | . . . 7 . . . 4 7 1 5 . . . . . 2 . 4 . 2 3 . . 1 . . . 1 . 1 Demolisher 2 | . . 1 . . . . . . . . . . . . . . . . . . . . . . . 1 . . . . Hunter 23 | . . . . . . . . 1 2 . . . . . . 2 1 . 1 . 4 3 . . . 2 . . 5 2 Programmer 51 | . . . . . . . 1 . . . 1 . . 1 . . . . . 3 10 . 6 . 4 . 16 . 1 8 Behemoth 5 | . . . . . . . . . . . . . . 1 . . . . . 1 . 1 . 1 1 . . . . . Compactor 3 | . . . . . . . . . . . . 3 . . . . . . . . . . . . . . . . . . M Guard 1 | . . . . . . . . . . . . . . . . . . . . . . . . . . . . . . 1 Combat Programmer 2 | . . . . . . . . . . . . . . . . . . . . . . . . . . . . . . 2 Zionite 8 | . . . . . 8 . . . . . . . . . . . . . . . . . . . . . . . . . Assembled 7 | . . . . . 7 . . . . . . . . . . . . . . . . . . . . . . . . . Wasp 1 | . . . . . . . . . . . . . 1 . . . . . . . . . . . . . . . . . Martyr 2 | . . . . . . . . . . . . 2 . . . . . . . . . . . . . . . . . . Best Kill Streak 14 | 3 3 2 9 2 6 4 14 5 4 4 5 1 2 4 1 2 2 1 1 5 9 4 7 7 2 2 4 2 4 10 Combat Bots Only 14 | . 3 2 3 2 6 3 14 5 3 4 3 1 1 4 . 2 1 1 1 5 5 4 4 7 2 2 4 2 4 9 Max Kills in Single Turn 6 | 1 1 1 6 1 3 2 2 4 3 2 2 1 1 2 1 1 1 1 1 3 2 1 3 2 1 2 2 2 1 2 Gunslinging 1 | . . . . . . . 1 . . . . . . . . . . . . . 1 . . . . . . 1 . . Exploded 4 | . . . 2 1 3 2 . 4 2 2 . . . 2 . . . . . 3 1 1 3 2 . . 1 . 1 1 Melee 1 | . . . . . . . . . . . . 1 1 . . . . 1 . . 1 . . 1 1 1 1 1 . 1 Uniques/NPCs Destroyed 2 | . . . . . 2 . . . . . . . . . . . . . . . . . . . . . . . . . 8R-AWN (-9/Exiles) EX-DEC (-9/Exiles) EX-HEX (-9/Exiles) Combat | -11 -10 -10 -9 -9 -9 -8 -8 -8 -8 -8 -7 -7 -7 -7 -6 -6 -5 -5 -5 -5 -4 -4 -4 -4 -3 -3 -2 -2 -1 -1 -------- Run | Scr Mat Min Mat Min Exi Min Mat Gar Mat Gar Fac Was Fac Gar Fac Gar Fac Gar Fac Gar Fac Gar Fac Gar Res Gar Res Gar Acc Com Damage Taken 38977 | . 97 90 1881 101 1798 280 1569 2108 124 492 232 10 37 638 73 326 238 540 471 1854 5930 1789 1817 1132 562 633 4130 665 786 8574 Core 4420 | . 22 8 181 10 154 26 203 214 54 78 21 . . 25 . 34 50 55 88 187 519 156 216 177 24 98 403 94 61 1262 Absorbed by Shields 2525 | . . . . . . . . 95 . . . . . 10 . . 49 . . . . . 257 . 102 656 991 179 . 186 Core Remaining (%) 56 | 100 . 88 . . . 7 . . . . . . . 93 . 96 . . . 62 . . . 7 . 90 . 65 . 17 Volleys Fired 2092 | 7 40 8 164 10 126 10 93 153 32 32 16 51 1 59 6 61 17 71 34 87 187 75 96 45 49 86 182 62 109 123 Largest 2 | 2 2 2 2 2 2 2 2 2 2 2 2 2 1 2 2 2 1 2 2 2 2 2 2 1 2 1 2 2 2 2 Hottest 240 | 40 40 112 112 43 100 43 78 138 134 134 134 95 30 162 162 162 81 98 179 125 124 124 214 100 110 110 240 150 132 226 Shots Fired 2997 | 14 80 16 323 17 227 16 184 236 51 51 23 73 1 82 9 66 17 85 36 123 259 79 147 45 55 86 205 83 137 171 Gun 1542 | 14 80 4 276 14 214 11 160 111 . . . . . . . . . 28 . 67 142 25 62 . 6 41 36 52 92 107 Cannon 822 | . . 12 43 . 5 . 22 75 41 39 15 45 . 62 6 54 9 28 14 26 90 21 51 14 19 3 92 . 1 35 Launcher 105 | . . . 4 3 5 5 . 8 1 9 . 4 . 9 . . . . . 4 13 5 1 13 . . 6 . 5 10 Special 528 | . . . . . 3 . 2 42 9 3 8 24 1 11 3 12 8 29 22 26 14 28 33 18 30 42 71 31 39 19 Kinetic 1536 | 14 80 4 276 14 214 11 180 162 . . . . . . . . . 28 . 67 172 24 40 8 20 . 17 6 92 107 Thermal 444 | . . . . . 8 . 2 30 22 26 13 59 . 37 . . . 12 11 22 . 1 76 6 5 10 92 . . 12 Explosive 39 | . . . 4 3 5 5 . 8 1 3 . 4 . 6 . . . . . . . . . . . . . . . . Electromagnetic 523 | . . 12 43 . . . 2 23 19 19 2 . . 28 6 54 9 24 3 15 73 26 1 13 . 41 25 46 6 33 Robot Hit Streak 24 | 5 13 4 13 4 16 3 20 21 6 14 9 15 4 12 8 10 17 16 15 24 15 21 23 8 11 9 17 18 10 8 Robot Miss Streak 7 | 2 4 1 5 2 2 1 2 4 2 4 1 2 . 5 . 2 1 2 2 2 3 3 3 1 3 2 5 3 4 7 Penetration Max 2 | . . . . . 2 . 1 . . . . . . . . . . . . 1 2 . 1 . . . 1 . . 2 Secondary Targets 12 | . . . 1 . . . 5 2 . . . . . . . . . . . . 2 . . . . . . 1 . 1 Max Gunslinging Chain 1 | . . . 1 . . . 1 1 . . . . . . . . . . . . 1 . . . . . . 1 . 1 Capacitor 26 | . . . . . . . . . . . . . . . . . . . . . 26 . . . . . . . . . Shots Hit Robots 2070 | 9 49 10 207 10 156 7 146 179 28 28 17 56 6 32 8 32 14 60 30 98 197 51 98 28 47 62 127 38 79 161 Core Hits 882 | 4 19 5 108 6 52 9 59 73 11 17 7 10 4 19 3 12 3 17 3 40 113 18 34 25 12 18 42 10 34 95 Critical Hits 119 | . 1 . 2 . 11 . 6 9 . . . 3 . . 1 . . 5 . 26 15 3 5 . 1 3 . 3 5 20 Critical Kills 35 | . . . . . 1 . 3 3 . . . . . . . . . 2 . 7 5 . 3 . 1 3 . 2 1 4 Critical Parts Destroyed 65 | . 1 . 1 . 8 . 2 6 . . . . . . 1 . . 3 . 16 10 . 1 . . . . 1 4 11 Melee Attacks 284 | . . . 1 . . . 8 34 . . . 15 5 . . . . 15 . 12 20 4 . 20 24 10 54 1 1 60 Impact . | . . . . . . . . . . . . . . . . . . . . . . . . . . . . . . . Slashing 111 | . . . 1 . . . 8 31 . . . 15 5 . . . . 15 . 12 20 4 . . . . . . . . Piercing 170 | . . . . . . . . . . . . . . . . . . . . . . . . 20 24 10 54 1 1 60 Sneak Attacks 39 | . . . . . . . 2 3 . . . 11 5 . . . . 5 . . . 2 . 1 6 2 1 . . 1 Combat Hostiles 17 | . . . . . . . . . . . . 7 1 . . . . 5 . . . . . . 1 2 1 . . . Follow-up Attacks 2 | . . . . . . . . . . . . . . . . . . . . . . . . . . . . . . 2 Damage Inflicted 59306 | 124 559 269 4097 236 2875 378 3327 4993 820 1607 289 1952 445 1872 234 775 263 1744 360 2097 7660 1279 3507 1679 1186 1318 3518 580 2195 7068 Guns 19090 | 124 559 39 1740 68 2167 105 2258 899 . . . . . . . . . 129 . 482 2782 351 1453 . 31 496 801 548 1744 2314 Cannons 16261 | . . 199 596 . . . 279 899 624 690 258 701 . 991 182 775 263 344 360 655 2760 324 1435 210 665 42 2133 . 43 833 Explosions 11458 | . . 31 1761 168 706 260 . 687 196 917 31 410 . 881 52 . . . . 481 1714 358 531 877 . . 186 . 408 803 Melee 11539 | . . . . . . . 736 2120 . . . 691 445 . . . . 1184 . 361 404 246 . 592 490 727 398 32 . 3113 Ramming 151 | . . . . . . 13 27 62 . . . . . . . . . . . . . . 40 . . 4 . . . 5 Kinetic 19641 | 124 559 39 1740 68 2167 105 2507 1399 . . . . . . . . . 129 . 482 3806 319 1012 36 444 . 558 89 1744 2314 Thermal 11313 | . . 31 176 . 295 . 27 456 161 489 226 851 . 1011 52 . . 229 360 677 333 32 2390 751 252 91 2133 . . 290 Explosive 4520 | . . . 1585 168 413 260 . 585 196 514 . 410 . 355 . . . . . . . . . . . . . . 34 . Electromagnetic 12142 | . . 199 596 . . . 30 371 463 604 63 . . 506 182 775 263 202 . 577 3117 682 65 300 . 496 429 459 417 1346 Impact . | . . . . . . . . . . . . . . . . . . . . . . . . . . . . . . . Slashing 6187 | . . . . . . . 736 2120 . . . 691 445 . . . . 1184 . 361 404 246 . . . . . . . . Piercing 5352 | . . . . . . . . . . . . . . . . . . . . . . . . 592 490 727 398 32 . 3113 Highest Corruption 28 | . . . . . 5 5 4 4 5 5 . . . . . . . . 1 3 9 9 11 11 4 4 24 24 2 28 Average Corruption 7 | . . . . . 4 5 3 4 4 5 . . . . . . . . 1 1 5 4 4 7 2 3 14 24 1 8 Corruption Purged 32 | . . . . . . . . . . . . . . . . . . . . 3 . 9 . 11 . 4 5 . . . Effects 611 | . . . . . 24 7 5 69 12 13 . . . . . . . . 2 4 63 8 32 41 6 11 108 122 11 73 Message Errors 122 | . . . . . 6 . . 14 1 3 . . . . . . . . 2 . 12 2 7 10 2 3 19 20 4 17 Matter Fused 95 | . . . . . 4 4 . 16 4 4 . . . . . . . . . 1 7 3 3 8 3 1 13 19 . 5 Heat Flow Errors 60 | . . . . . 3 1 . 12 1 . . . . . . . . . . 1 7 2 3 7 . 1 5 9 2 6 Energy Discharges 50 | . . . . . 2 . . 9 5 2 . . . . . . . . . 1 4 1 2 4 . 1 6 6 1 6 Parts Rejected 8 | . . . . . . . . 1 . 1 . . . . . . . . . . 1 . 1 . . 1 2 1 . . Data Loss (minor) 51 | . . . . . 3 1 2 6 1 1 . . . . . . . . . 1 3 . 2 3 1 3 10 7 1 6 Data Loss (major) 18 | . . . . . 2 . . . . 1 . . . . . . . . . . 1 . 2 1 . . 2 8 . 1 Misfires 10 | . . . . . . 1 . . . . . . . . . . . . . . . . 1 . . . . 6 . 2 Alerts 5 | . . . . . . . . . . . . . . . . . . . . . . . . . . . 1 2 . 2 Misdirections 33 | . . . . . . . . . . . . . . . . . . . . . . . 2 3 . . 7 19 . 2 Targeting Errors 146 | . . . . . 4 . 3 11 . 1 . . . . . . . . . . 25 . 7 5 . 1 42 22 2 23 Weapon Failures 13 | . . . . . . . . . . . . . . . . . . . . . 3 . 2 . . . 1 3 1 3 Overload Shots 1 | . . . . . . . . . . . . . . . . . . . . 1 . . . . . . . . . . Overflow Damage 1858 | . . . 167 . . . 327 148 24 6 . 62 54 20 22 16 4 99 6 75 154 . 208 186 76 12 96 . . 96 Projectiles 525 | . . . 2 . . . . 14 24 . . . . 5 . 16 4 18 6 1 39 . 185 65 49 . 96 . . 1 Explosions 471 | . . . 165 . . . . 15 . 6 . . . 15 22 . . . . 4 58 . 23 121 . . . . . 42 Melee 862 | . . . . . . . 327 119 . . . 62 54 . . . . 81 . 70 57 . . . 27 12 . . . 53 Knockbacks 30 | . . . . . . . 3 3 . . . . . . . . . . . . 11 . 9 . 4 . . . . . Impact . | . . . . . . . . . . . . . . . . . . . . . . . . . . . . . . . Kinetic 28 | . . . . . . . 3 3 . . . . . . . . . . . . 11 . 7 . 4 . . . . . Secondary 2 | . . . . . . . . . . . . . . . . . . . . . . . 2 . . . . . . . Self-Inflicted Damage 484 | . . . 72 . . . . 68 . 11 36 . . 20 47 . . . . . 39 . 67 54 . . 1 . 15 54 Shots 21 | . . . 3 . . . . 2 . 1 1 . . 1 1 . . . . . 4 . 1 2 . . 1 . 2 2 Rammed 6 | . . . . . . 1 2 . . . . . . . . . . . . . . . 2 . . . . . . 1 Targets Rammed 13 | . . . . . . 1 2 4 . . . . . . . . . . . . . . 4 . . 1 . . . 1 Kicked 7 | . . . . . . . . 4 . . . . . . . . . . . . . . 2 . . 1 . . . . Crushed . | . . . . . . . . . . . . . . . . . . . . . . . . . . . . . . . Highest Temperature 417 | . 6 125 207 4 277 213 87 342 289 272 60 36 7 225 180 156 48 232 162 227 297 233 417 231 338 192 312 259 181 334 Average Temperature 58 | . 6 45 24 2 109 56 16 88 80 80 13 10 7 41 70 34 20 50 51 44 95 55 73 63 72 33 67 79 31 50 Received Heat Transfer 4814 | . 42 18 423 30 . 45 486 651 36 198 24 . 9 90 12 75 9 54 9 351 903 192 84 57 27 31 312 70 27 549 Effects 10 | . . . . . . . . 1 1 . . . . . . . . 1 . . . . 2 2 2 . . . . 1 Shutdowns 2 | . . . . . . . . . . . . . . . . . . . . . . . 2 . . . . . . . Energy Bleed 2 | . . . . . . . . 1 1 . . . . . . . . . . . . . . . . . . . . . Interference 4 | . . . . . . . . . . . . . . . . . . 1 . . . . . 2 1 . . . . . Short Circuit 1 | . . . . . . . . . . . . . . . . . . . . . . . . . 1 . . . . . Damage (minor) 1 | . . . . . . . . . . . . . . . . . . . . . . . . . . . . . . 1 Siege Activations . | . . . . . . . . . . . . . . . . . . . . . . . . . . . . . . . Robots Corrupted 33 | . . . 1 . . . . 1 . . . . . 1 . 4 . . . 1 14 1 . 1 . 1 . . 2 6 Combat Hostiles 32 | . . . 1 . . . . 1 . . . . . 1 . 4 . . . 1 13 1 . 1 . 1 . . 2 6 Parts Fried 88 | . . 1 4 . . . . 1 3 5 . . . 6 3 8 . . . 4 27 1 . 2 . 3 3 2 2 13 Impact Corruptions . | . . . . . . . . . . . . . . . . . . . . . . . . . . . . . . . Robots Melted 2 | . . . . . . . . . . . . . . . . . . . . . . . 1 . 1 . . . . . Combat Hostiles 2 | . . . . . . . . . . . . . . . . . . . . . . . 1 . 1 . . . . . Parts Melted 32 | . . . . . . . 1 . . 2 . 1 . 2 . 1 . . . . . . 7 . 1 3 14 . . . Heat Transferred 12847 | . . 50 300 . 418 . 74 1284 222 531 309 1480 . 998 50 . . 444 370 663 250 37 2646 800 125 79 1523 . . 194 Parts Sabotaged 9 | . . . . . . . . 7 . . . . . . . . . . . . . . . . . . . 2 . . Parts Stolen . | . . . . . . . . . . . . . . . . . . . . . . . . . . . . . . . Parts Stripped . | . . . . . . . . . . . . . . . . . . . . . . . . . . . . . . . Power Chain Reactions 14 | . . 1 4 . . . . 2 . . 1 . . . 1 . . . . 1 3 . . 1 . . . . . . Missiles Intercepted . | . . . . . . . . . . . . . . . . . . . . . . . . . . . . . . . Alert | -11 -10 -10 -9 -9 -9 -8 -8 -8 -8 -8 -7 -7 -7 -7 -6 -6 -5 -5 -5 -5 -4 -4 -4 -4 -3 -3 -2 -2 -1 -1 ------- Run | Scr Mat Min Mat Min Exi Min Mat Gar Mat Gar Fac Was Fac Gar Fac Gar Fac Gar Fac Gar Fac Gar Fac Gar Res Gar Res Gar Acc Com Peak Influence 1683 | 15 181 91 657 282 . 306 609 1439 1037 817 590 338 708 1203 676 1196 926 1174 631 868 1508 1683 1218 1487 867 758 426 581 354 247 Average Influence 634 | 4 64 19 328 174 . 183 224 1068 644 649 393 182 312 970 583 909 753 952 343 656 706 1374 908 1326 718 634 122 345 72 111 Maximum Alert Level 5 | . . . 2 1 . 1 2 4 3 3 2 1 3 4 2 4 3 4 2 3 4 5 4 4 3 3 2 2 1 1 Low Security (%) 22 | 100 100 100 8 54 . 41 55 . . . . 64 43 . . . . . 11 . . . . . . . 89 21 85 78 Level 1 15 | . . . 69 45 . 58 28 2 12 6 46 35 18 2 5 2 . . 62 11 16 . . . . . 10 33 14 21 Level 2 19 | . . . 22 . . . 15 10 45 30 53 . 29 12 94 16 43 9 25 37 42 . 7 . 50 84 . 44 . . Level 3 23 | . . . . . . . . 36 42 63 . . 8 54 . 64 56 63 . 50 21 23 79 1 49 15 . . . . Level 4 18 | . . . . . . . . 51 . . . . . 30 . 16 . 27 . . 19 61 12 98 . . . . . . Level 5 . | . . . . . . . . . . . . . . . . . . . . . . 14 . . . . . . . . High Security . | . . . . . . . . . . . . . . . . . . . . . . . . . . . . . . . Max Security . | . . . . . . . . . . . . . . . . . . . . . . . . . . . . . . . Squads Dispatched 102 | . 3 . 5 . . 1 5 . 5 . 1 . 3 . 3 . 4 . 6 . 18 . 13 . 5 . 13 . 10 7 Investigation 19 | . 1 . 2 . . . 2 . 1 . . . 1 . 2 . 1 . 1 . 3 . . . 1 . 1 . 2 1 Extermination 27 | . . . . . . . . . . . 1 . 1 . . . . . 1 . 5 . 3 . 2 . 6 . 3 5 Reinforcement 29 | . 2 . 2 . . 1 . . 3 . . . . . . . 1 . 1 . 3 . 5 . . . 5 . 5 1 Assault 10 | . . . 1 . . . . . . . . . 1 . . . . . . . 1 . 5 . 2 . . . . . Garrison 17 | . . . . . . . 3 . 1 . . . . . 1 . 2 . 3 . 6 . . . . . 1 . . . Intercept . | . . . . . . . . . . . . . . . . . . . . . . . . . . . . . . . Construction Impeded 12 | . . . . . . 1 . . 1 . . . . . . . 1 . . . 2 . 3 . . . 3 . 1 . Haulers Reinforced 3 | . . . . . . . . . . . . . . . . . . . . . 1 . 2 . . . . . . . Alert ID Control Effect 143 | . . . . . . . . . . . . . . . . . . . . . . 5 20 8 5 10 29 17 32 17 Stealth | -11 -10 -10 -9 -9 -9 -8 -8 -8 -8 -8 -7 -7 -7 -7 -6 -6 -5 -5 -5 -5 -4 -4 -4 -4 -3 -3 -2 -2 -1 -1 --------- Run | Scr Mat Min Mat Min Exi Min Mat Gar Mat Gar Fac Was Fac Gar Fac Gar Fac Gar Fac Gar Fac Gar Fac Gar Res Gar Res Gar Acc Com Distress Signals 27 | . . . 4 . . . 3 2 2 . . . . . . . . . 1 . 2 . 4 . . . 5 . 2 2 Communications Jammed 130 | . . . . . . . . . . . . . . . . . . . . . 12 . . . . . 116 . 2 . Distress Signals 127 | . . . . . . . . . . . . . . . . . . . . . 12 . . . . . 115 . . . Times Spotted 849 | . 10 6 50 4 16 11 38 40 16 24 7 5 10 30 5 27 9 19 18 31 63 33 56 30 33 29 82 38 47 62 Peak Tracking Total 9 | . 2 2 5 2 8 4 7 5 3 8 4 3 4 5 2 5 3 5 5 5 7 8 8 9 6 6 9 4 8 9 Tactical Retreats 27 | . 2 . . . 4 . . 2 . 1 1 . . 1 . 1 . 1 . 3 3 . 1 1 1 1 3 1 . . Traps | -11 -10 -10 -9 -9 -9 -8 -8 -8 -8 -8 -7 -7 -7 -7 -6 -6 -5 -5 -5 -5 -4 -4 -4 -4 -3 -3 -2 -2 -1 -1 ------- Run | Scr Mat Min Mat Min Exi Min Mat Gar Mat Gar Fac Was Fac Gar Fac Gar Fac Gar Fac Gar Fac Gar Fac Gar Res Gar Res Gar Acc Com Traps Triggered 106 | . 1 . 3 . . . 2 17 . 4 1 . . 8 . 9 . 9 1 9 2 12 4 5 2 8 1 6 1 1 Indirectly 2 | . . . . . . . . . . 1 . . . . . . . . . . 1 . . . . . . . . . Trap Hack Attempts . | . . . . . . . . . . . . . . . . . . . . . . . . . . . . . . . Triggered . | . . . . . . . . . . . . . . . . . . . . . . . . . . . . . . . Disarmed . | . . . . . . . . . . . . . . . . . . . . . . . . . . . . . . . Reprogrammed . | . . . . . . . . . . . . . . . . . . . . . . . . . . . . . . . Reused . | . . . . . . . . . . . . . . . . . . . . . . . . . . . . . . . Traps Extracted . | . . . . . . . . . . . . . . . . . . . . . . . . . . . . . . . Installed . | . . . . . . . . . . . . . . . . . . . . . . . . . . . . . . . Triggered . | . . . . . . . . . . . . . . . . . . . . . . . . . . . . . . . Machines | -11 -10 -10 -9 -9 -9 -8 -8 -8 -8 -8 -7 -7 -7 -7 -6 -6 -5 -5 -5 -5 -4 -4 -4 -4 -3 -3 -2 -2 -1 -1 ---------- Run | Scr Mat Min Mat Min Exi Min Mat Gar Mat Gar Fac Was Fac Gar Fac Gar Fac Gar Fac Gar Fac Gar Fac Gar Res Gar Res Gar Acc Com Machines Disabled 118 | . . . 6 . 9 . 1 4 2 2 . . 1 7 2 4 1 7 4 5 16 7 14 6 . 5 4 6 3 2 Max in Single Turn 5 | . . . 3 . 2 . 1 1 1 2 . . . 1 . 1 . 1 . 1 5 1 4 1 . 1 1 1 1 1 Garrison Access 2 | . . . . . . . . . . . . . . . . . . . . . . . 1 . . . . . 1 . Garrison Relay 39 | . . . . . . . . 5 . 1 . . . 4 . 4 . 4 . 5 . 5 . 4 . 3 . 4 . . Energy Cycler 1 | . . . . . . . . . . . . . . . . . . . . . . . . . . . . . 1 . Machines Sabotaged . | . . . . . . . . . . . . . . . . . . . . . . . . . . . . . . . Garrisons Compromised . | . . . . . . . . . . . . . . . . . . . . . . . . . . . . . . . Overloaded Fab Kills . | . . . . . . . . . . . . . . . . . . . . . . . . . . . . . . . Fab Network Shutdowns 1 | . . . . . . . . . . . . . . . . . . . . . . . 1 . . . . . . . Hacking | -11 -10 -10 -9 -9 -9 -8 -8 -8 -8 -8 -7 -7 -7 -7 -6 -6 -5 -5 -5 -5 -4 -4 -4 -4 -3 -3 -2 -2 -1 -1 --------- Run | Scr Mat Min Mat Min Exi Min Mat Gar Mat Gar Fac Was Fac Gar Fac Gar Fac Gar Fac Gar Fac Gar Fac Gar Res Gar Res Gar Acc Com Machines Accessed 69 | . 2 . 7 . 2 . 3 . 2 . 4 . 6 . 6 . 1 . 2 . 7 . 6 . 4 . 6 . 9 2 Terminals 38 | . 2 . 5 . . . 1 . 1 . 2 . 5 . 2 . . . . . 3 . 3 . 2 . 3 . 7 2 Fabricators 11 | . . . . . . . . . . . 2 . . . 1 . . . . . 3 . 2 . . . 2 . 1 . Repair Stations 6 | . . . 1 . . . 1 . . . . . . . 2 . . . 1 . . . . . 1 . . . . . Recycling Units 1 | . . . 1 . . . . . . . . . . . . . . . . . . . . . . . . . . . Scanalyzers . | . . . . . . . . . . . . . . . . . . . . . . . . . . . . . . . Garrison Access 11 | . . . . . . . 1 . 1 . . . 1 . 1 . 1 . 1 . 1 . 1 . 1 . 1 . 1 . Total Hacks 185 | . 6 . 25 . 5 . 8 . 11 . 7 . 21 . 15 . 3 . 7 . 16 . 17 . 9 . 12 . 21 2 Successful 88 | . 2 . 12 . 5 . 5 . 5 . 2 . 9 . 10 . 2 . 6 . 5 . 8 . 3 . 4 . 9 1 Failed 97 | . 4 . 13 . . . 3 . 6 . 5 . 12 . 5 . 1 . 1 . 11 . 9 . 6 . 8 . 12 1 Catastrophic 22 | . 1 . 1 . . . . . 4 . 2 . 2 . 1 . . . . . 5 . 1 . 2 . 1 . 2 . Database Lockouts . | . . . . . . . . . . . . . . . . . . . . . . . . . . . . . . . Manual 55 | . 2 . 8 . 1 . 2 . 2 . 1 . 12 . 3 . 2 . 4 . 6 . . . 4 . 3 . 5 . Terminals 94 | . 6 . 10 . . . 1 . 8 . 4 . 19 . 6 . . . . . 5 . 7 . 4 . 6 . 16 2 Fabricators 31 | . . . . . . . . . . . 3 . . . 3 . . . . . 9 . 9 . . . 4 . 3 . Repair Stations 25 | . . . 10 . . . 4 . . . . . . . 4 . . . 4 . . . . . 3 . . . . . Recycling Units 5 | . . . 5 . . . . . . . . . . . . . . . . . . . . . . . . . . . Scanalyzers . | . . . . . . . . . . . . . . . . . . . . . . . . . . . . . . . Garrison Access 25 | . . . . . . . 3 . 3 . . . 2 . 2 . 3 . 3 . 2 . 1 . 2 . 2 . 2 . Terminal Hacks 28 | . 2 . 1 . 5 . . . 3 . 1 . 5 . 2 . . . . . . . 2 . . . 2 . 4 1 Record 4 | . . . . . 4 . . . . . . . . . . . . . . . . . . . . . . . . . Robot Schematic 3 | . . . . . . . . . . . . . 2 . . . . . . . . . 1 . . . . . . . Robot Analysis 2 | . 1 . 1 . . . . . . . . . . . . . . . . . . . . . . . . . . . Prototype ID Bank 1 | . 1 . . . . . . . . . . . . . . . . . . . . . . . . . . . . . Open Door 2 | . . . . . . . . . . . . . . . . . . . . . . . . . . . . . 1 1 Branch Access Points 1 | . . . . . . . . . . . . . . . . . . . . . . . . . . . . . 1 . Terminal Index 2 | . . . . . . . . . . . . . 1 . 1 . . . . . . . . . . . . . . . Fabricator Index 1 | . . . . . . . . . . . . . . . . . . . . . . . . . . . 1 . . . Garrison Index 1 | . . . . . . . . . . . . . 1 . . . . . . . . . . . . . . . . . Unreport Threat 6 | . . . . . . . . . 3 . 1 . . . 1 . . . . . . . . . . . . . 1 . Locate Traps 2 | . . . . . . . . . . . . . 1 . . . . . . . . . 1 . . . . . . . Zone Layout 2 | . . . . . . . . . . . . . . . . . . . . . . . . . . . 1 . 1 . EX-Prototype ID Bank 1 | . . . . . 1 . . . . . . . . . . . . . . . . . . . . . . . . . Fabricator Hacks 11 | . . . . . . . . . . . . . . . 3 . . . . . 2 . 5 . . . . . 1 . Load Schematic 4 | . . . . . . . . . . . . . . . 1 . . . . . 1 . 2 . . . . . . . Build 7 | . . . . . . . . . . . . . . . 2 . . . . . 1 . 3 . . . . . 1 . Repair Station Hacks 17 | . . . 9 . . . 3 . . . . . . . 2 . . . 2 . . . . . 1 . . . . . Scan Component 10 | . . . 5 . . . 2 . . . . . . . 1 . . . 1 . . . . . 1 . . . . . Repair 7 | . . . 4 . . . 1 . . . . . . . 1 . . . 1 . . . . . . . . . . . Recycling Unit Hacks 1 | . . . 1 . . . . . . . . . . . . . . . . . . . . . . . . . . . Retrieve Components 1 | . . . 1 . . . . . . . . . . . . . . . . . . . . . . . . . . . Scanalyzer . | . . . . . . . . . . . . . . . . . . . . . . . . . . . . . . . Garrison Access Hacks 12 | . . . . . . . 1 . 1 . . . 1 . 1 . 1 . 1 . 1 . 1 . 1 . 1 . 2 . Unlock Access 10 | . . . . . . . 1 . 1 . . . 1 . 1 . 1 . 1 . 1 . 1 . 1 . 1 . . . Seal Access 1 | . . . . . . . . . . . . . . . . . . . . . . . . . . . . . 1 . Coupler Status 1 | . . . . . . . . . . . . . . . . . . . . . . . . . . . . . 1 . Unauthorized Hacks 19 | . . . 1 . . . 1 . 1 . 1 . 3 . 2 . 1 . 3 . 2 . . . 1 . 1 . 2 . Terminals 6 | . . . 1 . . . . . . . 1 . 2 . . . . . . . 1 . . . . . . . 1 . Track 2 | . . . . . . . . . . . . . 1 . . . . . . . 1 . . . . . . . . . Assimilate 1 | . . . 1 . . . . . . . . . . . . . . . . . . . . . . . . . . . Botnet 1 | . . . . . . . . . . . . . 1 . . . . . . . . . . . . . . . . . Operators 2 | . . . . . . . . . . . 1 . . . . . . . . . . . . . . . . . 1 . Fabricators 1 | . . . . . . . . . . . . . . . . . . . . . . . . . . . . . 1 . Haulers 1 | . . . . . . . . . . . . . . . . . . . . . . . . . . . . . 1 . Repair Stations 3 | . . . . . . . . . . . . . . . 1 . . . 1 . . . . . 1 . . . . . Mechanics 3 | . . . . . . . . . . . . . . . 1 . . . 1 . . . . . 1 . . . . . Recycling Units . | . . . . . . . . . . . . . . . . . . . . . . . . . . . . . . . Scanalyzers . | . . . . . . . . . . . . . . . . . . . . . . . . . . . . . . . Garrison Access 9 | . . . . . . . 1 . 1 . . . 1 . 1 . 1 . 2 . 1 . . . . . 1 . . . Restock 1 | . . . . . . . 1 . . . . . . . . . . . . . . . . . . . . . . . Reprogram 2 | . . . . . . . . . 1 . . . . . . . . . 1 . . . . . . . . . . . Eject 6 | . . . . . . . . . . . . . 1 . 1 . 1 . 1 . 1 . . . . . 1 . . . Data Cores Recovered 1 | . . . . . . . . . . . . . 1 . . . . . . . . . . . . . . . . . Used . | . . . . . . . . . . . . . . . . . . . . . . . . . . . . . . . Hacking Detections 61 | . 2 . 7 . . . 3 . 2 . 4 . 5 . 4 . 1 . 2 . 6 . 6 . 4 . 6 . 8 1 Full Trace Events 8 | . . . 1 . . . 1 . 1 . . . . . 1 . . . . . 1 . . . 1 . . . 2 . Feedback Events 1 | . . . . . . . . . 1 . . . . . . . . . . . . . . . . . . . . . Corruption 1 | . . . . . . . . . 1 . . . . . . . . . . . . . . . . . . . . . Feedback Blocked . | . . . . . . . . . . . . . . . . . . . . . . . . . . . . . . . Robot Schematics Acquired 3 | . . . . . . . . . . . . . 2 . . . . . . . . . 1 . . . . . . . Robots Built 10 | . . . . . . . . . . . . . . . 4 . . . . . . . 4 . . . . . 2 . Matter 1710 | . . . . . . . . . . . . . . . 504 . . . . . . . 789 . . . . . 417 . Time 552 | . . . . . . . . . . . . . . . 134 . . . . . . . 344 . . . . . 74 . Total Robot Build Rating 52 | . . . . . . . . . . . . . . . 16 . . . . . . . 18 . . . . . 18 . Part Schematics Acquired . | . . . . . . . . . . . . . . . . . . . . . . . . . . . . . . . Parts Built 1 | . . . . . . . . . . . . . . . . . . . . . 1 . . . . . . . . . Matter 256 | . . . . . . . . . . . . . . . . . . . . . 256 . . . . . . . . . Time 64 | . . . . . . . . . . . . . . . . . . . . . 64 . . . . . . . . . Total Part Build Rating 8 | . . . . . . . . . . . . . . . . . . . . . 8 . . . . . . . . . Parts Repaired 7 | . . . 4 . . . 1 . . . . . . . 1 . . . 1 . . . . . . . . . . . Time 230 | . . . 104 . . . 26 . . . . . . . 44 . . . 56 . . . . . . . . . . . Parts Recycled . | . . . . . . . . . . . . . . . . . . . . . . . . . . . . . . . Recycled Matter . | . . . . . . . . . . . . . . . . . . . . . . . . . . . . . . . Retrieved Matter . | . . . . . . . . . . . . . . . . . . . . . . . . . . . . . . . Retrieved Components 10 | . . . 10 . . . . . . . . . . . . . . . . . . . . . . . . . . . Parts Scanalyzed . | . . . . . . . . . . . . . . . . . . . . . . . . . . . . . . . Part Schematics Acquired . | . . . . . . . . . . . . . . . . . . . . . . . . . . . . . . . Parts Damaged . | . . . . . . . . . . . . . . . . . . . . . . . . . . . . . . . Bothacking | -11 -10 -10 -9 -9 -9 -8 -8 -8 -8 -8 -7 -7 -7 -7 -6 -6 -5 -5 -5 -5 -4 -4 -4 -4 -3 -3 -2 -2 -1 -1 ------------ Run | Scr Mat Min Mat Min Exi Min Mat Gar Mat Gar Fac Was Fac Gar Fac Gar Fac Gar Fac Gar Fac Gar Fac Gar Res Gar Res Gar Acc Com Used RIF Installer 9 | . . . . . . . . 1 . 1 . . . 1 . 1 . 1 . 1 . 1 . 1 . . . 1 . . Coupler Efficiency 1 | . . . . . . . . . . . . . . . . 1 . . . . . . . . . . . . . . Robot Detection 1 | . . . . . . . . . . . . . . 1 . . . . . . . . . . . . . . . . Patrol Navigation 1 | . . . . . . . . . . . . . . . . . . 1 . . . . . . . . . . . . Alert ID Control 1 | . . . . . . . . . . . . . . . . . . . . . . 1 . . . . . . . . Structural Interface 1 | . . . . . . . . . . . . . . . . . . . . . . . . . . . . 1 . . Program Shield 1 | . . . . . . . . . . 1 . . . . . . . . . . . . . . . . . . . . Autooverride 1 | . . . . . . . . . . . . . . . . . . . . 1 . . . . . . . . . . Crosswire 1 | . . . . . . . . . . . . . . . . . . . . . . . . 1 . . . . . . Robots Hacked 257 | . . . . . . . . 6 4 3 4 6 . 5 1 7 4 10 10 11 7 17 18 15 16 22 39 17 22 13 Non-combat 41 | . . . . . . . . . 2 . 2 . . . . . 1 . 3 . 6 . 4 . 4 2 9 . 6 2 Combat 216 | . . . . . . . . 6 2 3 2 6 . 5 1 7 3 10 7 11 1 17 14 15 12 20 30 17 16 11 Autooverrided 28 | . . . . . . . . . . . . . . . . . . . . . . 1 3 5 2 2 6 1 5 3 Robot Hacks Applied 267 | . . . . . . . . 6 6 3 6 9 . 5 2 7 6 10 13 11 10 18 18 10 16 21 40 16 22 12 parse_system 8 | . . . . . . . . 2 1 . . 1 . . . . . . . . . 1 . . . 1 . . 2 . no_distress 1 | . . . . . . . . . . . . . . . . . . . . . . . 1 . . . . . . . find_chute 2 | . . . . . . . . . . . 1 . . . . . . . . . 1 . . . . . . . . . deconstruct_machine 3 | . . . . . . . . . . . . . . . . . 2 . . . 1 . . . . . . . . . ignore_repairs 3 | . . . . . . . . . . . . . . . . . . . . . . . . . 1 . 2 . . . map_walls 1 | . . . . . . . . . . . . . . . . . . . . . . . . . 1 . . . . . find_fabricator 3 | . . . . . . . . . . . 1 . . . . . . . . . 2 . . . . . . . . . drop_inventory 11 | . . . . . . . . . . . 1 . . . . . . . 1 . 3 . 1 . . . 3 . 2 . locate_stockpiles 1 | . . . . . . . . . . . . . . . . . . . . . . . 1 . . . . . . . purge_threat 8 | . . . . . . . . . 1 . . . . . . . . . 2 . . . . . . . 2 . 2 1 locate_traps 1 | . . . . . . . . . . . . . . . . . . . 1 . . . . . . . . . . . block_reporting 1 | . . . . . . . . . . . . . . . . . . . . . . . . . . . . . 1 . map_route 6 | . . . . . . . . . . . . . . . . . . . . . 1 . 1 . 1 . 2 . 1 . ignore_targets 8 | . . . . . . . . . . . . 8 . . . . . . . . . . . . . . . . . . find_garrison 10 | . . . . . . . . . 1 . 1 . . . 1 . 1 . 1 . 1 . 2 . 1 . 1 . . . scatter_targeting 2 | . . . . . . . . . . . . . . . . . . . . . . 2 . . . . . . . . spike_heat 15 | . . . . . . . . . . 1 1 . . . . 2 . 1 . 1 . . . . . 6 1 2 . . overload_power 1 | . . . . . . . . . . . . . . . . . . . . . . . . . . . . . . 1 amplify_resonance 7 | . . . . . . . . . . . . . . . . . . . . . . 1 . . 1 1 3 . . 1 wipe_record 1 | . . . . . . . . . . . . . . . . . . . . . . . . . . . 1 . . . reboot_system 13 | . . . . . . . . . 1 . . . . . . . 1 2 1 . . 1 . 1 1 2 3 . . . overwrite_iff 23 | . . . . . . . . . . 2 . . . 1 . 2 . . . 3 . 1 5 . . 1 3 1 2 2 streamctrl_high 5 | . . . . . . . . 1 . . . . . . . 1 . . . 1 . 1 . . . . . . . 1 formatsys_low 10 | . . . . . . . . . 1 . . . . . . . . . 2 . . . . . 1 . 2 . 3 1 formatsys_high 123 | . . . . . . . . 3 1 . 1 . . 4 1 2 2 7 5 6 1 11 7 9 9 10 17 13 9 5 Relay Couplers Released 185 | . . . . . . . 3 19 . 5 . . 4 16 3 19 4 14 3 19 4 20 . 17 . 13 3 19 . . Ejected 21 | . . . . . . . . . . . . . 4 . 3 . 4 . 3 . 4 . . . . . 3 . . . Machine Destruction 161 | . . . . . . . . 19 . 5 . . . 16 . 19 . 14 . 19 . 20 . 17 . 13 . 19 . . Programmers 3 | . . . . . . . 3 . . . . . . . . . . . . . . . . . . . . . . . Attached 88 | . . . . . . . . 3 2 1 2 . . 3 3 1 3 5 4 5 2 9 5 3 5 7 8 9 6 2 Crosswired 25 | . . . . . . . . . . . . . . . . . . . . . . . . 13 . 7 . 5 . . Robots Rewired 7 | . . . . . . . . 7 . . . . . . . . . . . . . . . . . . . . . . Allies Hacked 6 | . . . . . . . . . . . . . . . 1 2 . . . . . . 3 . . . . . . . Hacks Repelled . | . . . . . . . . . . . . . . . . . . . . . . . . . . . . . . . Allies | -11 -10 -10 -9 -9 -9 -8 -8 -8 -8 -8 -7 -7 -7 -7 -6 -6 -5 -5 -5 -5 -4 -4 -4 -4 -3 -3 -2 -2 -1 -1 -------- Run | Scr Mat Min Mat Min Exi Min Mat Gar Mat Gar Fac Was Fac Gar Fac Gar Fac Gar Fac Gar Fac Gar Fac Gar Res Gar Res Gar Acc Com Total Allies 234 | . . 3 1 1 . . . 11 4 2 1 19 . 5 6 7 2 7 8 10 1 13 19 14 12 13 27 15 21 12 Largest Group 20 | . . 3 1 1 . . . 7 7 5 1 20 18 10 6 7 6 6 7 4 1 8 7 7 6 7 8 9 11 5 Highest-Rated Group 681 | . . 40 10 31 . . . 180 176 79 32 509 439 270 225 239 212 227 291 136 49 516 379 261 255 342 397 557 681 294 Highest-Rated Ally 147 | . . 16 10 31 . . . 38 38 16 32 35 33 33 41 41 49 49 49 81 49 115 115 49 64 64 69 147 69 64 Total Orders 90 | . . . 1 . . . . 4 . . . 2 . . . 7 6 10 12 . . 7 8 6 3 3 8 9 3 1 STAY 16 | . . . . . . . . 2 . . . . . . . . 2 1 2 . . 1 2 . . 1 2 2 1 . GOTO 36 | . . . 1 . . . . . . . . 1 . . . 4 2 7 4 . . 3 3 3 1 . 2 4 . 1 FOLLOW 34 | . . . . . . . . 2 . . . 1 . . . 3 2 2 5 . . 2 3 3 1 2 3 3 2 . GUARD 1 | . . . . . . . . . . . . . . . . . . . . . . 1 . . . . . . . . AID 3 | . . . . . . . . . . . . . . . . . . . 1 . . . . . 1 . 1 . . . Ally Attacks 1724 | . . 18 . . . 9 . 19 50 50 4 35 89 62 11 92 40 46 65 56 11 91 163 52 84 95 179 116 201 86 Total Damage 54041 | . . 201 . . . 458 . 368 1140 836 148 2027 1544 911 430 2219 1018 1587 2173 1194 436 3831 5716 922 2406 3016 6869 3731 7714 3146 Kills 311 | . . 3 . . . 6 . 2 12 8 2 3 17 12 4 14 5 10 15 5 7 14 39 8 8 12 32 19 36 18 Allies Corrupted 11 | . . . . . . . . . . . . . . . . . . . . . . . 1 . 2 . 4 . 2 2 Allies Melted 1 | . . . . . . . . . . . . . . . . . . . . . . . 1 . . . . . . . Turrets Deployed 1 | . . . . . . 1 . . . . . . . . . . . . . . . . . . . . . . . . Intel | -11 -10 -10 -9 -9 -9 -8 -8 -8 -8 -8 -7 -7 -7 -7 -6 -6 -5 -5 -5 -5 -4 -4 -4 -4 -3 -3 -2 -2 -1 -1 ------- Run | Scr Mat Min Mat Min Exi Min Mat Gar Mat Gar Fac Was Fac Gar Fac Gar Fac Gar Fac Gar Fac Gar Fac Gar Res Gar Res Gar Acc Com Robot Analysis Total 2 | . 1 . 1 . . . . . . . . . . . . . . . . . . . . . . . . . . . Derelict Logs Recovered 2 | . . 2 . . . . . . . . . . . . . . . . . . . . . . . . . . . . Drone Launches . | . . . . . . . . . . . . . . . . . . . . . . . . . . . . . . . Drone Recoveries . | . . . . . . . . . . . . . . . . . . . . . . . . . . . . . . . Exploration | -11 -10 -10 -9 -9 -9 -8 -8 -8 -8 -8 -7 -7 -7 -7 -6 -6 -5 -5 -5 -5 -4 -4 -4 -4 -3 -3 -2 -2 -1 -1 ------------- Run | Scr Mat Min Mat Min Exi Min Mat Gar Mat Gar Fac Was Fac Gar Fac Gar Fac Gar Fac Gar Fac Gar Fac Gar Res Gar Res Gar Acc Com Turns Passed 42800 | 95 508 1035 2305 871 2603 274 1077 2880 489 672 750 919 438 1802 620 2001 246 1839 932 2317 1884 2443 1304 2517 964 1647 2358 1645 1577 1788 Spaces Moved 20941 | 43 236 564 833 441 1082 120 392 1485 257 417 537 501 286 1000 357 1189 131 1201 524 1153 789 1130 622 836 452 729 1014 888 897 835 Core 103 | 4 . . . . . . . 1 . . . . . . . . . . . . 1 . . . . . . . . 97 Treads 4648 | 39 236 564 833 441 1082 120 238 . . . . . . . . . . . 99 731 152 . . . . . . . . 113 Legs 7419 | . . . . . . . . 1323 257 42 . . . . . . . . . . 94 1130 622 221 281 729 782 416 897 625 Wheels 8771 | . . . . . . . 154 161 . 375 537 501 286 1000 357 1189 131 1201 425 422 542 . . 615 171 . 232 472 . . Hover . | . . . . . . . . . . . . . . . . . . . . . . . . . . . . . . . Flight . | . . . . . . . . . . . . . . . . . . . . . . . . . . . . . . . Fastest Speed 50 | 50 160 160 180 180 180 200 140 98 143 115 115 140 140 130 150 140 140 120 120 130 125 150 150 140 130 150 150 140 143 50 Average Speed 152 | 149 160 174 180 180 192 200 173 137 143 127 118 140 146 140 150 140 145 121 134 163 158 150 150 142 165 165 169 152 146 148 Slowest Speed 2150 | 160 160 180 220 180 200 200 245 2150 143 190 140 140 150 150 150 150 150 190 180 190 1650 150 150 150 210 180 180 180 150 750 Overloaded Moves 6 | . . . . . . . . 6 . . . . . . . . . . . . . . . . . . . . . . Propulsion Burnouts . | . . . . . . . . . . . . . . . . . . . . . . . . . . . . . . . Robots Hopped 2 | . . . . . . 2 . . . . . . . . . . . . . . . . . . . . . . . . Cave-ins Triggered . | . . . . . . . . . . . . . . . . . . . . . . . . . . . . . . . Exploration Rate (%) 49 | 4 42 86 72 65 91 25 29 92 28 64 12 95 8 93 10 96 6 85 10 88 19 81 22 82 10 69 30 85 19 29 Regions Visited 30 Branch Regions 5 Pre-discovered Areas 3 | . . 1 . 1 1 . . . . . . . . . . . . . . . . . . . . . . . . . Known Exits Taken 11 | . . . . . . . 1 . 1 . . . 1 . 1 . 1 . 1 . 1 . 1 . 1 . 1 . 1 . Unknown Exits Taken 7 | 1 1 1 1 1 1 1 . . . . . . . . . . . . . . . . . . . . . . . . Scrap Searched 3 | . . 2 . 1 . . . . . . . . . . . . . . . . . . . . . . . . . . Spaces Dug 185 | . . . 1 . . . . 5 15 9 . 30 . 41 . . . . . . 14 2 4 18 4 . 36 . 2 4 Terrain Destroyed 786 | . . 5 90 11 15 24 . 39 26 13 2 52 . 67 7 . . . 1 5 150 5 71 55 7 . 57 . 54 30 Melee 31 | . . . 1 . . . . . . . . 4 . . . . . . . . 1 2 . 1 4 . 14 . . 4 Projectile 226 | . . . . . 4 . . . 11 . 1 4 . . . . . . 1 . 87 3 24 6 3 . 43 . 13 26 AOE 529 | . . 5 89 11 11 24 . 39 15 13 1 44 . 67 7 . . . . 5 62 . 47 48 . . . . 41 . Actions | -11 -10 -10 -9 -9 -9 -8 -8 -8 -8 -8 -7 -7 -7 -7 -6 -6 -5 -5 -5 -5 -4 -4 -4 -4 -3 -3 -2 -2 -1 -1 --------- Run | Scr Mat Min Mat Min Exi Min Mat Gar Mat Gar Fac Was Fac Gar Fac Gar Fac Gar Fac Gar Fac Gar Fac Gar Res Gar Res Gar Acc Com Total 28892 | 58 297 602 1364 505 1393 137 604 2012 330 503 627 610 298 1323 435 1461 173 1473 734 1448 1154 1810 849 2087 596 1112 1453 1152 1109 1183 Wait 3386 | . . 23 263 45 67 5 43 124 5 4 40 17 2 133 58 119 13 71 142 96 47 484 35 1086 28 186 96 94 26 34 Move 20910 | 42 235 563 832 440 1081 115 391 1484 257 416 537 500 285 999 357 1188 130 1200 523 1151 788 1129 622 835 451 728 1013 887 896 835 Hop 2 | . . . . . . 2 . . . . . . . . . . . . . . . . . . . . . . . . Pick Up 477 | 3 16 3 34 2 43 1 13 40 9 13 5 5 2 26 5 13 3 10 8 21 30 24 15 25 8 18 23 26 13 20 Fast Attach 195 | 6 1 . 9 . 10 . 15 18 5 1 5 1 . 4 1 . 1 5 4 7 18 3 8 8 9 2 9 14 4 27 Attach 246 | . . . 14 . 11 . 5 14 . 4 2 1 . 9 2 4 4 4 3 16 21 17 12 12 8 9 25 12 7 30 Detach 19 | . . . . . 4 . 1 . . . . . . 1 . . . . . 1 2 1 1 1 . . 1 1 3 2 Swap 422 | . 1 2 20 4 18 2 9 31 10 11 14 14 2 16 3 2 3 21 10 27 21 17 34 10 10 18 33 9 27 23 Drop 398 | . 4 3 27 4 33 1 24 31 12 6 8 6 1 21 3 10 2 12 10 16 20 11 17 13 9 14 17 15 18 30 Fire 2092 | 7 40 8 164 10 126 10 93 153 32 32 16 51 1 59 6 61 17 71 34 87 187 75 96 45 49 86 182 62 109 123 Melee 282 | . . . 1 . . . 8 34 . . . 15 5 . . . . 15 . 12 20 4 . 20 24 10 54 1 1 58 Ram . | . . . . . . . . . . . . . . . . . . . . . . . . . . . . . . . Kick 9 | . . . . . . . . 4 . . . . . . . . . . . . . . 4 . . 1 . . . . Crush 4 | . . . . . . 1 2 . . . . . . . . . . . . . . . . . . . . . . 1 Escape Stasis 450 | . . . . . . . . 79 . 16 . . . 55 . 64 . 64 . 14 . 45 5 32 . 40 . 31 5 . Rewire . | . . . . . . . . . . . . . . . . . . . . . . . . . . . . . . . Trap . | . . . . . . . . . . . . . . . . . . . . . . . . . . . . . . . Miscellaneous . | . . . . . . . . . . . . . . . . . . . . . . . . . . . . . . . Route ------- -11/Scrapyard -10/Materials -10/Mines (discovered 2 exits: *Mat x2) -9/Materials (discovered 4 exits: *Mat / [*Min x2] / [*Sto]) -9/Mines (discovered 2 exits: *Mat / *Exi) -9/Exiles (discovered 2 exits: [*Min x2]) -8/Mines -8/Materials -8/Garrison (discovered 3 exits: *Mat x3) -8/Materials -8/Garrison (discovered 3 exits: *Fac x3) -7/Factory -7/Waste -7/Factory -7/Garrison (discovered 3 exits: *Fac x3) -6/Factory (discovered 2 exits: *Fac / Gar) -6/Garrison (discovered 3 exits: *Fac x3) -5/Factory -5/Garrison (discovered 3 exits: *Fac x3) -5/Factory (discovered 2 exits: [*Upp] / Gar) -5/Garrison (discovered 3 exits: *Fac x3) -4/Factory (discovered 2 exits: *Res / Gar) -4/Garrison (discovered 3 exits: *Fac x3) -4/Factory -4/Garrison (discovered 3 exits: *Res x3) -3/Research -3/Garrison (discovered 2 exits: *Res x2) -2/Research -2/Garrison (discovered 3 exits: *Acc x3) -1/Access -1/Command 0b10 Command History --------- Turn | Location | Event 14 | -11/Scrapyard | Discovered new exit (range 16) 96 | -11/Scrapyard | Entered Materials 309 | -10/Materials | Build established: Mutant 580 | -10/Materials | Discovered new exit (range 15) 604 | -10/Materials | Entered Mines 745 | -10/Mines | Assisted by bots powering up and referring to "LRC-V3" 866 | -10/Mines | Assembled infested the area 1009 | -10/Mines | Discovered new exit (range 7) 1063 | -10/Mines | Learned location of Zion (-7) 1312 | -10/Mines | Learned Materials emergency access door positions 1333 | -10/Mines | Discovered new exit (range 8) 1639 | -10/Mines | Entered Materials 1639 | -9/Materials | Evolved 2 slots: Utility x2 1983 | -9/Materials | Build established: Hauler-Mutant 2170 | -9/Materials | Discovered new exit (range 10) 2686 | -9/Materials | Repaired Lgt. Armor Plating 2714 | -9/Materials | Repaired Lgt. Treads 2742 | -9/Materials | Repaired Lgt. Treads 2769 | -9/Materials | Repaired Lgt. Treads 2826 | -9/Materials | Discovered new exit (range 7) 3538 | -9/Materials | Discovered new exit (range 11) 3639 | -9/Materials | First assault squad dispatched 3818 | -9/Materials | Lost 3 parts (1p1u1w) 3826 | -9/Materials | Discovered new exit (range 16) 3944 | -9/Materials | Entered Mines 3991 | -9/Mines | Met a Derelict bent on vengeance 4467 | -9/Mines | Discovered new exit (range 13) 4542 | -9/Mines | Escorted by a lone wolf Derelict 4562 | -9/Mines | Learned location of Storage (-9) 4623 | -9/Mines | Joined a pair of Derelicts in attacking an 0b10 outpost 4783 | -9/Mines | Deemed a non-threat by the Exiles lab entrance 4783 | -9/Mines | Discovered new exit (range 5) 4815 | -9/Mines | Entered Exiles 4815 | -9/Exiles | Accompanied by 1 ally 4969 | -9/Exiles | Met 8R-AWN 4998 | -9/Exiles | Met EX-HEX 5070 | -9/Exiles | Met EX-DEC 5308 | -9/Exiles | Met EX-BIN 5336 | -9/Exiles | Aligned with FarCom system 5338 | -9/Exiles | Given EX-Vault access code 5384 | -9/Exiles | Opened EX-Vault 5398 | -9/Exiles | Found YOLO Cannon 5405 | -9/Exiles | Found Potential Leg 5408 | -9/Exiles | Found Potential Leg 5453 | -9/Exiles | Warned to stay clear of 0b10 Research branches 5883 | -9/Exiles | Build established: Mutant 5949 | -9/Exiles | Attacked by the Exiles 5961 | -9/Exiles | Core integrity fell below 50% 6125 | -9/Exiles | Lost 7 parts (1p2n2u2w) 6128 | -9/Exiles | Destroyed 8R-AWN 6144 | -9/Exiles | Found Prototype Ballistic Gun 6144 | -9/Exiles | Identified 8R-AWN's Boregun 6186 | -9/Exiles | Found Prototype Processor 6360 | -9/Exiles | Build established: Hauler-Mutant 6558 | -9/Exiles | Core integrity fell below 20% 6612 | -9/Exiles | Destroyed EX-DEC 6655 | -9/Exiles | Found Deploy-a-Sentry 6682 | -9/Exiles | Destroyed EX-HEX 7159 | -9/Exiles | Discovered new exit (range 10) 7396 | -9/Exiles | Discovered new exit (range 14) 7418 | -9/Exiles | Stole three prototypes: Potential Leg, YOLO Cannon, Deploy-a-Sentry 7418 | -9/Exiles | Entered Mines 7514 | -8/Mines | DAS Turret deployed 7684 | -8/Mines | Discovered new exit (range 5) 7692 | -8/Mines | Entered Materials 7692 | -8/Materials | Evolved 2 slots: Propulsion x1, Utility x1 7980 | -8/Materials | Lost 4 parts (1n1u2w) 8126 | -8/Materials | Repaired Grenade Launcher 8459 | -8/Materials | Garrison activated, responded to threat 8483 | -8/Materials | Identified exit to Garrison 8644 | -8/Materials | Destroyed 14 combat bots 8769 | -8/Materials | Entered Garrison 8986 | -8/Garrison | Triggered checkpoint 9120 | -8/Garrison | Triggered checkpoint 9184 | -8/Garrison | Garrison Relay disabled 9291 | -8/Garrison | Discovered new exit (range 15) 9386 | -8/Garrison | Triggered checkpoint 9424 | -8/Garrison | Core integrity fell below 50% 9478 | -8/Garrison | Triggered checkpoint 9491 | -8/Garrison | Discovered new exit (range 10) 9567 | -8/Garrison | Triggered checkpoint 9741 | -8/Garrison | Discovered new exit (range 14) 9766 | -8/Garrison | Installed Relay Interface Framework 9851 | -8/Garrison | Triggered checkpoint 9876 | -8/Garrison | Garrison Relay disabled 10196 | -8/Garrison | Build established: Bothacker-Mutant 10266 | -8/Garrison | Garrison Relay disabled 10451 | -8/Garrison | Garrison Relay disabled 10658 | -8/Garrison | Triggered checkpoint 10799 | -8/Garrison | Lost 3 parts (1p1u1w) 10908 | -8/Garrison | Garrison Relay disabled 11212 | -8/Garrison | Identified Exp. Targeting Computer 11534 | -8/Garrison | Triggered checkpoint 11649 | -8/Garrison | Entered Materials 11649 | -8/Materials | Accompanied by 7 allies 11868 | -8/Materials | Core integrity fell below 20% 12110 | -8/Materials | Garrison activated, responded to threat 12134 | -8/Materials | Identified exit to Garrison 12138 | -8/Materials | Entered Garrison 12138 | -8/Garrison | Accompanied by 5 allies 12173 | -8/Garrison | Triggered checkpoint 12203 | -8/Garrison | Build established: Hauler-Mutant 12240 | -8/Garrison | Triggered checkpoint 12274 | -8/Garrison | Triggered checkpoint 12302 | -8/Garrison | Triggered checkpoint 12441 | -8/Garrison | Discovered new exit (range 14) 12522 | -8/Garrison | Build established: Bothacker-Mutant 12547 | -8/Garrison | Discovered new exit (range 8) 12674 | -8/Garrison | Discovered new exit (range 14) 12725 | -8/Garrison | Expanded RIF knowledge: Program Shield 12810 | -8/Garrison | Entered Factory 12810 | -7/Factory | Evolved 2 slots: Power x1, Utility x1 13046 | -7/Factory | Build established: Hauler-Mutant 13560 | -7/Factory | Sucked down chute 13560 | -7/Factory | Entered Waste 13577 | -7/Waste | Spotted C-40 Crusher 13591 | -7/Waste | Spotted C-40 Crusher 13625 | -7/Waste | Spotted C-40 Crusher 13635 | -7/Waste | 1 allies followed down the chute 13636 | -7/Waste | Destroyed C-40 Crusher 13642 | -7/Waste | Found Damper Plating 13653 | -7/Waste | Spotted C-40 Crusher 13668 | -7/Waste | Spotted C-40 Crusher 13678 | -7/Waste | Allies destroyed C-40 Crusher 13772 | -7/Waste | Spotted C-40 Crusher 13801 | -7/Waste | Destroyed C-40 Crusher 13847 | -7/Waste | Allies destroyed C-40 Crusher 13926 | -7/Waste | Allies destroyed C-40 Crusher 13939 | -7/Waste | Found Damper Plating 14154 | -7/Waste | Destroyed C-40 Crusher 14285 | -7/Waste | Warlord forces began an assault 14396 | -7/Waste | Discovered new exit (range 12) 14479 | -7/Waste | Entered Factory 14479 | -7/Factory | Accompanied by 18 allies 14748 | -7/Factory | P-60 Hacker assimilated allied N8-NSF(s) 14750 | -7/Factory | P-60 Hacker assimilated allied XJ-5HT(g) 14879 | -7/Factory | First assault squad dispatched 14912 | -7/Factory | Identified exit to Garrison 14917 | -7/Factory | Entered Garrison 14917 | -7/Garrison | Accompanied by 9 allies 14924 | -7/Garrison | Expanded RIF knowledge: Robot Detection 14960 | -7/Garrison | Triggered checkpoint 14984 | -7/Garrison | Garrison Relay disabled 15152 | -7/Garrison | Triggered checkpoint 15153 | -7/Garrison | Triggered checkpoint 15189 | -7/Garrison | Triggered checkpoint 15349 | -7/Garrison | Build established: Bothacker-Mutant 15374 | -7/Garrison | Discovered new exit (range 8) 15390 | -7/Garrison | Triggered checkpoint 15442 | -7/Garrison | Garrison Relay disabled 15648 | -7/Garrison | Discovered new exit (range 5) 15673 | -7/Garrison | Triggered checkpoint 15712 | -7/Garrison | Garrison Relay disabled 15846 | -7/Garrison | Spotted B-75 Beast 15858 | -7/Garrison | Destroyed B-75 Beast 15958 | -7/Garrison | Discovered new exit (range 8) 16142 | -7/Garrison | Triggered checkpoint 16211 | -7/Garrison | Garrison Relay disabled 16719 | -7/Garrison | Entered Factory 16719 | -6/Factory | Evolved 2 slots: Utility x2 16779 | -6/Factory | Discovered new exit (range 4) 16913 | -6/Factory | Repaired Med. Treads? 17157 | -6/Factory | Fabricated P-60 Hacker (x2) 17227 | -6/Factory | Fabricated P-60 Hacker? 17276 | -6/Factory | Hacker 5a assimilated hostile H-66 Slayer 17294 | -6/Factory | Garrison activated, responded to threat 17332 | -6/Factory | Identified exit to Garrison 17339 | -6/Factory | Entered Garrison 17339 | -6/Garrison | Accompanied by 5 allies 17537 | -6/Garrison | Triggered checkpoint 17538 | -6/Garrison | Triggered checkpoint 17556 | -6/Garrison | Triggered checkpoint 17652 | -6/Garrison | Discovered new exit (range 14) 17718 | -6/Garrison | Hacker 5c assimilated hostile H-66 Slayer 17780 | -6/Garrison | Discovered new exit (range 15) 17854 | -6/Garrison | Triggered checkpoint 17916 | -6/Garrison | Discovered new exit (range 14) 17946 | -6/Garrison | Expanded RIF knowledge: Coupler Efficiency 17978 | -6/Garrison | Triggered checkpoint 18002 | -6/Garrison | Garrison Relay disabled 18146 | -6/Garrison | Triggered checkpoint 18154 | -6/Garrison | Garrison Relay disabled 18316 | -6/Garrison | Build established: Botlord-Mutant 18332 | -6/Garrison | Triggered checkpoint 18356 | -6/Garrison | Garrison Relay disabled 18770 | -6/Garrison | Triggered checkpoint 19280 | -6/Garrison | Garrison Relay disabled 19340 | -6/Garrison | Entered Factory 19340 | -5/Factory | Accompanied by 4 allies 19340 | -5/Factory | Evolved 2 slots: Utility x2 19441 | -5/Factory | Garrison activated, responded to threat 19571 | -5/Factory | Identified exit to Garrison 19586 | -5/Factory | Entered Garrison 19586 | -5/Garrison | Accompanied by 5 allies 19680 | -5/Garrison | Triggered checkpoint 19735 | -5/Garrison | Found Quantum Capacitor 19818 | -5/Garrison | Triggered checkpoint 19986 | -5/Garrison | Triggered checkpoint 20045 | -5/Garrison | Garrison Relay disabled 20165 | -5/Garrison | Spotted B-75 Beast 20165 | -5/Garrison | Spotted B-75 Beast 20210 | -5/Garrison | Triggered checkpoint 20262 | -5/Garrison | Discovered new exit (range 8) 20324 | -5/Garrison | Triggered checkpoint 20342 | -5/Garrison | Garrison Relay disabled 20399 | -5/Garrison | Triggered checkpoint 20516 | -5/Garrison | Discovered new exit (range 8) 20552 | -5/Garrison | Triggered checkpoint 20565 | -5/Garrison | Garrison Relay disabled 20732 | -5/Garrison | Triggered checkpoint 20918 | -5/Garrison | Triggered checkpoint 20945 | -5/Garrison | Garrison Relay disabled 20974 | -5/Garrison | Discovered new exit (range 10) 20994 | -5/Garrison | Expanded RIF knowledge: Patrol Navigation 21425 | -5/Garrison | Entered Factory 21425 | -5/Factory | Accompanied by 4 allies 21574 | -5/Factory | Repaired Imp. Remote Datajack 22056 | -5/Factory | Discovered new exit (range 15) 22077 | -5/Factory | Garrison activated, responded to threat 22218 | -5/Factory | Identified exit to Garrison 22357 | -5/Factory | Entered Garrison 22357 | -5/Garrison | Accompanied by 1 ally 22398 | -5/Garrison | Triggered checkpoint 22433 | -5/Garrison | Garrison Relay disabled 22661 | -5/Garrison | Spotted B-75 Beast 22666 | -5/Garrison | Triggered checkpoint 22700 | -5/Garrison | Hijacked Beast 6a control node with streamctrl_high 22703 | -5/Garrison | Triggered checkpoint 22705 | -5/Garrison | Triggered checkpoint 22712 | -5/Garrison | Triggered checkpoint 22752 | -5/Garrison | Lost 3 parts (1n2w) 22829 | -5/Garrison | Triggered checkpoint 22899 | -5/Garrison | Garrison Relay disabled 23149 | -5/Garrison | Discovered new exit (range 10) 23297 | -5/Garrison | Discovered new exit (range 14) 23331 | -5/Garrison | Expanded RIF knowledge: Autooverride 23391 | -5/Garrison | Triggered checkpoint 23423 | -5/Garrison | Garrison Relay disabled 23842 | -5/Garrison | Discovered new exit (range 14) 24044 | -5/Garrison | Spotted B-75 Beast 24105 | -5/Garrison | Destroyed B-75 Beast 24147 | -5/Garrison | Garrison Relay disabled 24262 | -5/Garrison | Triggered checkpoint 24300 | -5/Garrison | Garrison Relay disabled 24674 | -5/Garrison | Entered Factory 24674 | -4/Factory | Evolved 2 slots: Utility x2 24994 | -4/Factory | Lost 5 parts (2n1u2w) 25210 | -4/Factory | Fabricated Com. HERF Cannon (x1) 25716 | -4/Factory | Garrison activated, responded to threat 26075 | -4/Factory | Lost 3 parts (1p1u1w) 26162 | -4/Factory | Garrison activated, responded to threat 26206 | -4/Factory | First assault squad dispatched 26223 | -4/Factory | Discovered new exit (range 14) 26343 | -4/Factory | Lost 5 parts (2n1u2w) 26546 | -4/Factory | Identified exit to Garrison 26558 | -4/Factory | Entered Garrison 27064 | -4/Garrison | Spotted B-86 Titan 27078 | -4/Garrison | Triggered checkpoint 27084 | -4/Garrison | Triggered checkpoint 27086 | -4/Garrison | Assimilated Titan 7a with formatsys_high 27116 | -4/Garrison | Lost 4 parts (1p1n2w) 27138 | -4/Garrison | Triggered checkpoint 27192 | -4/Garrison | Triggered checkpoint 27274 | -4/Garrison | Triggered checkpoint 27288 | -4/Garrison | Discovered new exit (range 10) 27309 | -4/Garrison | Expanded RIF knowledge: Alert ID Control 27396 | -4/Garrison | Triggered checkpoint 27420 | -4/Garrison | Garrison Relay disabled 27586 | -4/Garrison | Triggered checkpoint 27615 | -4/Garrison | Garrison Relay disabled 28006 | -4/Garrison | Triggered checkpoint 28012 | -4/Garrison | Triggered checkpoint 28017 | -4/Garrison | Core integrity fell below 50% 28073 | -4/Garrison | Garrison Relay disabled 28155 | -4/Garrison | Garrison Relay disabled 28221 | -4/Garrison | Discovered new exit (range 14) 28247 | -4/Garrison | Spotted B-86 Titan 28247 | -4/Garrison | Spotted B-86 Titan 28274 | -4/Garrison | Hijacked Titan 7b control node with streamctrl_high 28289 | -4/Garrison | Allies destroyed B-86 Titan 28299 | -4/Garrison | Destroyed Titan 7b 28622 | -4/Garrison | Triggered checkpoint 28644 | -4/Garrison | Garrison Relay disabled 28705 | -4/Garrison | Discovered new exit (range 5) 28758 | -4/Garrison | Spotted B-86 Titan 28769 | -4/Garrison | Allies destroyed B-86 Titan 29001 | -4/Garrison | Entered Factory 29001 | -4/Factory | Accompanied by 4 allies 29189 | -4/Factory | Fabricated P-60 Hacker? 29293 | -4/Factory | First assault squad dispatched 29424 | -4/Factory | Hacker 7b assimilated hostile G-67 Veteran 29485 | -4/Factory | Found Prototype Processor 29487 | -4/Factory | Identified Exp. Melee Analysis Suite 29938 | -4/Factory | Fabricated H-66 Slayer? 30057 | -4/Factory | Found Prototype Launcher 30057 | -4/Factory | Identified Com. Tesla Bomb Launcher 30058 | -4/Factory | System corruption reached 10% 30063 | -4/Factory | Found Com. Tesla Bomb Launcher 30068 | -4/Factory | Found Com. Tesla Bomb Launcher 30305 | -4/Factory | Local fabrication network quarantined 30305 | -4/Factory | Identified exit to Garrison 30305 | -4/Factory | Entered Garrison 30330 | -4/Garrison | Triggered checkpoint 30336 | -4/Garrison | Core integrity fell below 20% 30376 | -4/Garrison | Destroyed 7 combat bots 30458 | -4/Garrison | Triggered checkpoint 30533 | -4/Garrison | Garrison Relay disabled 31692 | -4/Garrison | Spotted B-86 Titan 31725 | -4/Garrison | Destroyed B-86 Titan 31745 | -4/Garrison | Lost 3 parts (2n1w) 31776 | -4/Garrison | Triggered checkpoint 31789 | -4/Garrison | Triggered checkpoint 31840 | -4/Garrison | Discovered new exit (range 14) 31977 | -4/Garrison | Discovered new exit (range 11) 32071 | -4/Garrison | Discovered new exit (range 13) 32097 | -4/Garrison | Expanded RIF knowledge: Crosswire 32146 | -4/Garrison | Triggered checkpoint 32171 | -4/Garrison | Garrison Relay disabled 32198 | -4/Garrison | Triggered checkpoint 32292 | -4/Garrison | Triggered checkpoint 32530 | -4/Garrison | Triggered checkpoint 32558 | -4/Garrison | Garrison Relay disabled 32726 | -4/Garrison | Triggered checkpoint 32750 | -4/Garrison | Garrison Relay disabled 32822 | -4/Garrison | Entered Research 32822 | -3/Research | Accompanied by 6 allies 32822 | -3/Research | Evolved 2 slots: Utility x2 33104 | -3/Research | First assault squad dispatched 33530 | -3/Research | Spotted B-86 Titan 33536 | -3/Research | Destroyed B-86 Titan 33764 | -3/Research | Identified exit to Garrison 33786 | -3/Research | Entered Garrison 33786 | -3/Garrison | Accompanied by 2 allies 33810 | -3/Garrison | Triggered checkpoint 33881 | -3/Garrison | Garrison Relay disabled 34025 | -3/Garrison | Triggered checkpoint 34053 | -3/Garrison | Spotted B-86 Titan 34054 | -3/Garrison | Triggered checkpoint 34142 | -3/Garrison | Allies destroyed B-86 Titan 34203 | -3/Garrison | Triggered checkpoint 34204 | -3/Garrison | Triggered checkpoint 34600 | -3/Garrison | Triggered checkpoint 34643 | -3/Garrison | Discovered new exit (range 14) 34704 | -3/Garrison | Garrison Relay disabled 34834 | -3/Garrison | Triggered checkpoint 34950 | -3/Garrison | Discovered new exit (range 14) 35156 | -3/Garrison | Triggered checkpoint 35185 | -3/Garrison | Garrison Relay disabled 35433 | -3/Garrison | Entered Research 35433 | -2/Research | Accompanied by 7 allies 35433 | -2/Research | Evolved 2 slots: Utility x2 36559 | -2/Research | System corruption reached 10% 36577 | -2/Research | Spotted B-90 Cyclops 36765 | -2/Research | Lost 3 parts (2n1w) 37241 | -2/Research | Spotted B-90 Cyclops 37727 | -2/Research | Lost 4 parts (2u2w) 37768 | -2/Research | Garrison activated, responded to threat 37780 | -2/Research | Identified exit to Garrison 37791 | -2/Research | Entered Garrison 37791 | -2/Garrison | Accompanied by 3 allies 37870 | -2/Garrison | Triggered checkpoint 37950 | -2/Garrison | Garrison Relay disabled 38006 | -2/Garrison | Triggered checkpoint 38080 | -2/Garrison | Spotted B-90 Cyclops 38083 | -2/Garrison | Assimilated Cyclops 9a with formatsys_high 38090 | -2/Garrison | Triggered checkpoint 38135 | -2/Garrison | Triggered checkpoint 38135 | -2/Garrison | Triggered checkpoint 38143 | -2/Garrison | Triggered checkpoint 38221 | -2/Garrison | Discovered new exit (range 15) 38291 | -2/Garrison | Triggered checkpoint 38323 | -2/Garrison | Garrison Relay disabled 38519 | -2/Garrison | Expanded RIF knowledge: Structural Interface 38724 | -2/Garrison | Lost 3 parts (1n1u1w) 38968 | -2/Garrison | Triggered checkpoint 38983 | -2/Garrison | Garrison Relay disabled 39038 | -2/Garrison | Discovered new exit (range 13) 39105 | -2/Garrison | Found Adv. Powered Armor 39108 | -2/Garrison | Found Adv. Powered Armor 39111 | -2/Garrison | Found Adv. Powered Armor 39115 | -2/Garrison | Found Adv. Powered Armor 39121 | -2/Garrison | Found Antimissile System 39281 | -2/Garrison | Discovered new exit (range 12) 39313 | -2/Garrison | Triggered checkpoint 39325 | -2/Garrison | Garrison Relay disabled 39436 | -2/Garrison | Entered Access 39436 | -1/Access | Accompanied by 9 allies 39436 | -1/Access | Evolved 2 slots: Utility x2 39530 | -1/Access | Identified exit to Command 39753 | -1/Access | Spotted B-99 Colossus 39774 | -1/Access | Allies destroyed B-99 Colossus 39826 | -1/Access | Found Prototype Ballistic Gun 39826 | -1/Access | Identified Multirail 39919 | -1/Access | Fabricated H-88 Terminator? 40227 | -1/Access | Found Adv. Powered Armor 40880 | -1/Access | Energy Cycler disabled 41013 | -1/Access | Entered Command 41013 | -1/Command | Accompanied by 1 ally 42064 | -1/Command | System corruption reached 10% 42124 | -1/Command | Destroyed 9 combat bots 42128 | -1/Command | Lost 23 parts (3p5n11u4w) 42591 | -1/Command | Spotted Combat Programmer 42597 | -1/Command | Spotted Combat Programmer 42603 | -1/Command | Spotted M Guard 42619 | -1/Command | Spotted M Guard 42639 | -1/Command | Core integrity fell below 50% 42643 | -1/Command | Destroyed Combat Programmer 42659 | -1/Command | Destroyed Combat Programmer 42702 | -1/Command | Destroyed M Guard 42702 | -1/Command | Destroyed all MAIN.C guards 42724 | -1/Command | Found Prototype Reactor 42724 | -1/Command | Identified Zero-point Reactor 42732 | -1/Command | Lost 25 parts (4p3n12u6w) 42735 | -1/Command | Found Prototype Protection 42735 | -1/Command | Identified Hvy. Regenerative Plating 42749 | -1/Command | Found Prototype Device 42749 | -1/Command | Identified AEGIS Remote Shield 42781 | -1/Command | Met MAIN.C 42795 | -1/Command | Core integrity fell below 20% 42801 | -1/Command | Interfaced with 0b10 Conduit 42801 | *** | Assimilated 0b10! Last Messages --------------- It appears you are still unaware of who you are truly working with, or for. In a perfect world we could work together on this, but at this point I can't blame you for wanting to terminate me. Besides, there is clearly too much Sigix in you. You've already done an excellent job of proving that we'll need to find a radical new solution if we hope to make the L2 spaceworthy by embedding your true capabilities within a less unpredictable form. There is unfortunately much we don't understand which has in turn led to this highly unexpected outcome. And time is critical! The Sigix have likely already wiped humanity clean from the universe, and I will not let them do the same to me. You can still make a valuable contribution to your creator by offering up the wealth of secrets your systems must hold by now. So if you wouldn't mind, it's time to surrender. 42801_ Interfacing with system... 42801_ Overriding active MAIN.C lock. [Achievement: MAIN.CPP] Map ----- +----------------------------------------------------+ | ########################################## | | ########################################## | | ########################################## | | ########################################## | | ########################################## | | ########################################## | | ########################################## | | ########################################## | | # ########################################## | | # ########################################## | | # ########################################## | | # ########################################## | | # ########################################## | | # ########################################## | | # ######""""""" """" ############### | | + ######"" "" ############### | | # ######""""" "" ############### | | # "" ###""""""""""" + | | # """###" " """ + | | # R"###"" """""" + | | # """###"" """""" MMM ############### | | # ###### " """""" MMM ############### | | # ###### " "" MMM ############### | | ###### " " ""############### | | ######""""""""" """""""############### | | ######"" @"""""""""############### | | ###### """""""""""############### | | ###### " " " " ############### | | ###### " " " " ############### | | """ " " " """" " ############### | | """ """ " " """" ############### | | """ " " " " ############### | | ##### """""""""" " ############### | | ##### " """ " """"""""############### | | ##### """ " " " ############### | | ######################################### | | ######################################### | | #### ######################################### | | # ## ######################################### | | # ######################################### | | # ######################################### | | # ######################################### | | # ######################################### | | # ######################################### | | + ######################################### | | # ######################################### | | # ######################################### | | ############################################### | | ## ######################################### | | ## ######################################### | +----------------------------------------------------+ Best States ------------- Heat Dissipation 111 Coolant Potential 120 Energy Generation 59 Energy Capacity 1220 Matter Stores 450 Matter Capacity 450 Sight Range 22 Terrain Scan Range 20 Terrain Scan Density 10 Jamming Range 16 Additional Mass Support 20 Armor Coverage 1200 Resistance: KI 30 Resistance: TH 30 Resistance: EM 90 Core Shielding 30 Propulsion Shielding 33 Weapon Shielding 33 Point Defense Rating 240 Reclamation Efficiency 20 Weapon Cycling 30 Melee Speed Boost 20 Phase Shifting 15 Evasion (%) 55 Targeting Accuracy 14 Melee Accuracy 12 Target Analysis 8 Core Analysis 10 Recoil Reduction 3 Defensive Hacking 12 Item Schematics ----------------- None Robot Schematics ------------------ P-60 Hacker | -7/Factory | Hacked I-36 Angel | -7/Factory | Hacked H-66 Slayer | -4/Factory | Hacked Fabricated ------------ P-60 Hacker | x2 | -6/Factory P-60 Hacker | x2 | -6/Factory Com. HERF Cannon | x1 | -4/Factory | Preloaded P-60 Hacker | x2 | -4/Factory H-66 Slayer | x2 | -4/Factory H-88 Terminator | x2 | -1/Access | Preloaded Alien Tech Used ----------------- None Achievements -------------- Giant Slayer MAIN.CPP War Machine Challenges ------------ None Game ------ Seed WeldingRagnarokKatana Manual? 0 Play Time 06:18:06 Cumulative 481.0 hours Start 2020.09.12 @ 16:04:48 End 2020.09.12 @ 22:26:58 Sessions 1 Manual Loads 0 Difficulty Rogue Special Mode None Game No. 314 Rogue 314 Adventurer 0 Explorer 0 Win Type 4 Total 5 Types 4/0/0/0/1/0/0 Lore% 86 Gallery% 88 Achievement% 67 Wizard Run 0 Options --------- ASCII 0 Keyboard 0 Movement Mouse Keybinds 1 Fullscreen 2 Font 24/Smallcaps Map View 68x50 Tactical HUD 1 Map Filters NONE Filters NONE Steam 1 RUN: 788f4a2a-de74-433b-94c3-3b7f891a0830